Workbook

Sheet Program Obliczeniowy
A1: liczba drużyn | B1: 17 | F1: FINAŁ | G1: …………………… | J1: OGÓLNOPOLSKIEGO TURNIEJU BRD SZKÓŁ PODSTWOWYCH - GRUPA - I | AG1: test | AJ1: test skrzyzowan | AM1: historia | AP1: motorower | BN1: drozunowo | BO1: drozunowo | BQ1: drozunowo | BR1: drozunowo | BS1: drozunowo | BT1: drozunowo | BU1: drozunowo | BV1: drozunowo | BX1: drozunowo | BY1: drozunowo | CC1: "0"test | CD1: "0"test
A2: =B1*4 -> 68 | C2: NR startowy | D2: Imię i nazwisko | E2: Szkoła | F2: Test Wiedzy | G2: m-ce | H2: Test Skrzyzowan | I2: m-ce | J2: MRD | K2: m-ce | L2: RTP | M2: m-ce | N2: Pierwsza Pomoc | O2: m-ce | P2: razem drużyna | Q2: m-ce drużyna | R2: razem indywidualnie | S2: m-ce indywidualnie | X2: G | Y2: I | Z2: K | AA2: M | AG2: 0 | AJ2: 0 | AS2: 0 | BE2: 0 | BN2: suma | BO2: test | BP2: test skrzyz | BQ2: MRD | BR2: p pomoc | BS2: samoch. | BT2: RTP | BU2: obsl.moto | CB2: =MAX(CC:CC)+1 -> 15 | CC2: =MAX(CD:CD)+1 -> 8 | CD2: 1 | CF2: =MAX(CG:CG)+1 -> 9
A3: =B1 -> 17 | B3: =IF(MOD(ROW(),4)=3,((ROW()+1)/4),"") -> 1 | C3: =CONCATENATE(B3,"A") -> 1A | D3: ADAM PIEROŃCZYK | E3: Szkola Podstawowa w Krośnicy | F3: 10 | G3: =IF(ISBLANK(F3),"",IF(F3=0,$CB$2,CC3)) -> 13 | H3: 7 | I3: =IF(ISBLANK(H3),"",IF(H3=0,$CF$2,CG3)) -> 4 | J3: 9 | K3: =IF(ISNUMBER(J3),VLOOKUP(J3,AM:AN,2,FALSE),"") -> 4 | L3: 4 | M3: =IF(ISNUMBER(L3),VLOOKUP(L3,AP:AQ,2,FALSE),"") -> 5 | N3: 13 | O3: =IF(ISBLANK(N3),"",IF(N3=0,$CC$2,CD3)) -> 5 | P3: =IF(ISNUMBER(O3),IF(ISNUMBER(O3),IF(ISNUMBER(O3),IF(ISNUMBER(O3),O3+G3+G4+G5+G6+I3+I4+I5+I6+K3+K4+K5+K6+M3+M4+M5+M6,""),""),""),"") -> 110 | Q3: =IF(ISNUMBER(P3),VLOOKUP(BV3,BX:BY,2,FALSE),"") -> 13 | R3: =IF(ISNUMBER(G3),IF(ISNUMBER(I3),IF(ISNUMBER(K3),IF(ISNUMBER(M3),SUM(G3,I3,K3,M3),""),""),""),"") -> 26 | S3: =IF(ISNUMBER(R3),VLOOKUP(AB3,AC:AD,2,FALSE),"") -> 47 | X3: =G3 -> 13 | Y3: =I3 -> 4 | Z3: =K3 -> 4 | AA3: =M3 -> 5 | AB3: =IF(ISNUMBER(R3),CONCATENATE(R3+100,X3+100,Y3+100,Z3+100,AA3+100)+0,"") -> 126113104104105 | AC3: =IF(ISNUMBER(SMALL(AB:AB,ROW()-2)),SMALL(AB:AB,ROW()-2),"") -> 106101101102102 | AD3: 1 | AG3: =IF(ISNUMBER(LARGE(F:F,ROW()-2)),LARGE(F:F,ROW()-2),"") -> 23 | AH3: 1 | AJ3: =IF(ISNUMBER(LARGE(H:H,ROW()-2)),LARGE(H:H,ROW()-2),"") -> 10 | AK3: 1 | AM3: =IF(ISNUMBER(SMALL(J:J,ROW()-2)),SMALL(J:J,ROW()-2),"") -> 0 | AN3: 1 | AP3: =IF(ISNUMBER(SMALL(L:L,ROW()-2)),SMALL(L:L,ROW()-2),"") -> 0 | AQ3: 1 | AS3: =IF(ISNUMBER(LARGE(N:N,ROW()-2)),LARGE(N:N,ROW()-2),"") -> 17 | AT3: 1 | AV3: =IF(ISNUMBER(SMALL(#REF!,ROW()-2)),SMALL(#REF!,ROW()-2),"") ->  | AW3: 1 | AY3: =IF(#REF!,#REF!+0,) ->  | AZ3: =IF(ISNUMBER(LARGE(AY:AY,ROW()-2)),LARGE(AY:AY,ROW()-2),"") ->  | BA3: 1 | BB3: =IF(ISNUMBER(AY3),VLOOKUP(AY3,AZ:BA,2,FALSE),"") ->  | BD3: =P3 -> 110 | BE3: =IF(ISNUMBER(SMALL(P:P,ROW()-2)),SMALL(P:P,ROW()-2),"") -> 42 | BF3: 1 | BG3: =IF(ISNUMBER(BD3),VLOOKUP(BD3,BE:BF,2,FALSE),"") -> 12 | BI3: =IF(ISNUMBER(SMALL(R:R,ROW()-2)),SMALL(R:R,ROW()-2),"") -> 6 | BJ3: 1 | BN3: =P3 -> 110 | BO3: =SUM(G3,G4,G5,G6) -> 43 | BP3: =SUM(I3,I4,I5,I6) -> 16 | BQ3: =SUM(K3,K4,K5,K6) -> 14 | BR3: =O3 -> 5 | BS3: =#REF! ->  | BT3: =SUM(M3,M4,M5,M6) -> 32 | BU3: =#REF! ->  | BV3: =IF(ISNUMBER(P3),CONCATENATE(BN3+100,BO3+100,BP3+100,BQ3+100,BT3+100,BR3+100)+0,"") -> 2.101431161e+17 | BW3: =IF(ISNUMBER(SMALL(BV:BV,ROW()-2)),SMALL(BV:BV,ROW()-2),"") -> 1.421151051e+17 | BX3: =IF(ISNUMBER(SMALL(BV:BV,ROW()-2)),SMALL(BV:BV,ROW()-2),"") -> 1.421151051e+17 | BY3: 1 | CC3: =VLOOKUP(F3,AG:AH,2,FALSE) -> 13 | CD3: =VLOOKUP(N3,AS:AT,2,FALSE) -> 5 | CE3: =IF(ISNUMBER(J3),VLOOKUP(J3,AM:AN,2,FALSE),"") -> 4 | CG3: =VLOOKUP(H3,AJ:AK,2,FALSE) -> 4
B4: =IF(MOD(ROW(),4)=3,((ROW()+1)/4),"") ->  | C4: =CONCATENATE(B3,"B") -> 1B | D4: BŁAŻEJ PAWLIK | F4: 16 | G4: 7 | H4: 9 | I4: 2 | J4: 9 | K4: 4 | L4: 0 | M4: 1 | R4: =IF(ISNUMBER(G4),IF(ISNUMBER(I4),IF(ISNUMBER(K4),IF(ISNUMBER(M4),SUM(G4,I4,K4,M4),""),""),""),"") -> 14 | S4: 24 | X4: =G4 -> 7 | Y4: =I4 -> 2 | Z4: 4 | AA4: 1 | AB4: =IF(ISNUMBER(R4),CONCATENATE(R4+100,X4+100,Y4+100,Z4+100,AA4+100)+0,"") -> 114107102104101 | AC4: 107102101101103 | AD4: =IF(AC3<>AC4,AD3+1,AD3) -> 2 | AG4: 23 | AH4: =IF(AG3<>AG4,AH3+1,AH3) -> 1 | AJ4: 10 | AK4: =IF(AJ3<>AJ4,AK3+1,AK3) -> 1 | AM4: 0 | AN4: =IF(AM3<>AM4,AN3+1,AN3) -> 1 | AP4: 0 | AQ4: =IF(AP3<>AP4,AQ3+1,AQ3) -> 1 | AS4: 16 | AT4: =IF(AS3<>AS4,AT3+1,AT3) -> 2 | AV4: =IF(ISNUMBER(SMALL(#REF!,ROW()-2)),SMALL(#REF!,ROW()-2),"") ->  | AW4: =IF(AV3<>AV4,AW3+1,AW3) -> 1 | BA4: =IF(AZ4<>0,IF(AZ3<>AZ4,BA3+1,BA3),"") -> 1 | BE4: 44 | BF4: =IF(BE3<>BE4,BF3+1,BF3) -> 2 | BI4: 7 | BJ4: =IF(BI3<>BI4,BJ3+1,BJ3) -> 2 | BX4: 1.441141071e+17 | BY4: =IF(BX3<>BX4,BY3+1,BY3) -> 2 | CC4: 7 | CE4: 4 | CG4: 2
B5: =IF(MOD(ROW(),4)=3,((ROW()+1)/4),"") ->  | C5: =CONCATENATE(B3,"C") -> 1C | D5: KATRINE GORDZIELIK | F5: 14 | G5: 9 | H5: 6 | I5: 5 | J5: 0 | K5: 1 | L5: 6 | M5: 7 | R5: 22 | S5: 36 | X5: =G5 -> 9 | Y5: 5 | Z5: 1 | AA5: 7 | AB5: 122109105101107 | AC5: 107102102101102 | AD5: =IF(AC4<>AC5,AD4+1,AD4) -> 3 | AG5: 23 | AH5: 1 | AJ5: 10 | AK5: 1 | AM5: 0 | AN5: =IF(AM4<>AM5,AN4+1,AN4) -> 1 | AP5: 0 | AQ5: =IF(AP4<>AP5,AQ4+1,AQ4) -> 1 | AS5: 16 | AT5: =IF(AS4<>AS5,AT4+1,AT4) -> 2 | AV5: =IF(ISNUMBER(SMALL(#REF!,ROW()-2)),SMALL(#REF!,ROW()-2),"") ->  | AW5: =IF(AV4<>AV5,AW4+1,AW4) -> 1 | BA5: 1 | BE5: 45 | BF5: 3 | BI5: 7 | BJ5: 2 | BX5: 1.451161061e+17 | BY5: 3 | CC5: 9 | CE5: 1 | CG5: 5
C6: =CONCATENATE(B3,"D") -> 1D | D6: NIKOLA HENDEL | F6: 9 | G6: 14 | H6: 6 | I6: 5 | J6: 12 | K6: 5 | L6: 34 | M6: 19 | R6: 43 | S6: 59 | X6: 14 | Y6: 5 | Z6: 5 | AA6: 19 | AB6: 143114105105119 | AC6: 107103102101101 | AD6: 4 | AG6: 22 | AH6: 2 | AJ6: 10 | AK6: 1 | AM6: 0 | AN6: 1 | AP6: 0 | AQ6: 1 | AS6: 15 | AT6: 3 | AV6: =IF(ISNUMBER(SMALL(#REF!,ROW()-2)),SMALL(#REF!,ROW()-2),"") ->  | AW6: 1 | BA6: 1 | BE6: 55 | BF6: 4 | BI6: 7 | BJ6: 2 | BS6: =#REF! ->  | BU6: =#REF! ->  | BX6: 1.551171071e+17 | BY6: 4 | CC6: 14 | CE6: 5 | CG6: 5
B7: 2 | C7: =CONCATENATE(B7,"A") -> 2A | D7: JULIA SZOT | E7: Szkoła Podstawowa w Dobroszycach | F7: 14 | G7: 9 | H7: 8 | I7: 3 | J7: 3 | K7: 2 | L7: 41 | M7: 20 | N7: 14 | O7: =IF(ISBLANK(N7),"",IF(N7=0,$CC$2,CD7)) -> 4 | P7: =IF(ISNUMBER(O7),IF(ISNUMBER(O7),IF(ISNUMBER(O7),IF(ISNUMBER(O7),O7+G7+G8+G9+G10+I7+I8+I9+I10+K7+K8+K9+K10+M7+M8+M9+M10,""),""),""),"") -> 124 | Q7: =IF(ISNUMBER(P7),VLOOKUP(BV7,BX:BY,2,FALSE),"") -> 15 | R7: 34 | S7: 55 | X7: 9 | Y7: 3 | Z7: 2 | AA7: 20 | AB7: 134109103102120 | AC7: 107104101101101 | AD7: 5 | AG7: 22 | AH7: 2 | AJ7: 10 | AK7: 1 | AM7: 0 | AN7: 1 | AP7: 0 | AQ7: 1 | AS7: 15 | AT7: 3 | AV7: =IF(ISNUMBER(SMALL(#REF!,ROW()-2)),SMALL(#REF!,ROW()-2),"") ->  | AW7: 1 | AY7: =IF(#REF!,#REF!+0,) ->  | BA7: 1 | BB7: =IF(ISNUMBER(AY7),VLOOKUP(AY7,AZ:BA,2,FALSE),"") ->  | BD7: =P7 -> 124 | BE7: 60 | BF7: 5 | BG7: =IF(ISNUMBER(BD7),VLOOKUP(BD7,BE:BF,2,FALSE),"") -> 14 | BI7: 7 | BJ7: 2 | BN7: =P7 -> 124 | BO7: =SUM(G7,G8,G9,G10) -> 34 | BP7: =SUM(I7,I8,I9,I10) -> 12 | BQ7: =SUM(K7,K8,K9,K10) -> 10 | BR7: =O7 -> 4 | BT7: =SUM(M7,M8,M9,M10) -> 64 | BV7: =IF(ISNUMBER(P7),CONCATENATE(BN7+100,BO7+100,BP7+100,BQ7+100,BT7+100,BR7+100)+0,"") -> 2.241341121e+17 | BW7: =IF(ISNUMBER(SMALL(BV:BV,ROW()-2)),SMALL(BV:BV,ROW()-2),"") -> 1.601311051e+17 | BX7: 1.601311051e+17 | BY7: 5 | CC7: 9 | CD7: =VLOOKUP(N7,AS:AT,2,FALSE) -> 4 | CE7: 2 | CG7: 3
C8: =CONCATENATE(B7,"B") -> 2B | D8: HANNA BOJANOWSKA | F8: 11 | G8: 12 | H8: 8 | I8: 3 | J8: 3 | K8: 2 | L8: 17 | M8: 15 | R8: 32 | S8: 53 | X8: 12 | Y8: 3 | Z8: 2 | AA8: 15 | AB8: 132112103102115 | AC8: 108101101101105 | AD8: 6 | AG8: 22 | AH8: 2 | AJ8: 10 | AK8: 1 | AM8: 0 | AN8: 1 | AP8: 1 | AQ8: 2 | AS8: 14 | AT8: 4 | AV8: =IF(ISNUMBER(SMALL(#REF!,ROW()-2)),SMALL(#REF!,ROW()-2),"") ->  | AW8: 1 | BA8: 1 | BE8: 64 | BF8: 6 | BI8: 8 | BJ8: 3 | BX8: 1.641281051e+17 | BY8: 6 | CC8: 12 | CE8: 2 | CG8: 3
C9: =CONCATENATE(B7,"C") -> 2C | D9: MARCIN ŻYBORT | F9: 17 | G9: 6 | H9: 9 | I9: 2 | J9: 6 | K9: 3 | L9: 21 | M9: 17 | R9: 28 | S9: 49 | X9: 6 | Y9: 2 | Z9: 3 | AA9: 17 | AB9: 128106102103117 | AC9: 108103102102101 | AD9: 7 | AG9: 20 | AH9: 3 | AJ9: 10 | AK9: 1 | AM9: 0 | AN9: 1 | AP9: 1 | AQ9: 2 | AS9: 14 | AT9: 4 | AV9: =IF(ISNUMBER(SMALL(#REF!,ROW()-2)),SMALL(#REF!,ROW()-2),"") ->  | AW9: 1 | BA9: 1 | BE9: 81 | BF9: 7 | BI9: 8 | BJ9: 3 | BS9: =#REF! ->  | BU9: =#REF! ->  | BX9: 1.811261151e+17 | BY9: 7 | CC9: 6 | CE9: 3 | CG9: 2
C10: =CONCATENATE(B7,"D") -> 2D | D10: IWO BARTOŚ | F10: 16 | G10: 7 | H10: 7 | I10: 4 | J10: 6 | K10: 3 | L10: 12 | M10: 12 | R10: 26 | S10: 44 | X10: 7 | Y10: 4 | Z10: 3 | AA10: 12 | AB10: 126107104103112 | AC10: 108104102101101 | AD10: 8 | AG10: 20 | AH10: 3 | AJ10: 10 | AK10: 1 | AM10: 0 | AN10: 1 | AP10: 1 | AQ10: 2 | AS10: 14 | AT10: 4 | AV10: =IF(ISNUMBER(SMALL(#REF!,ROW()-2)),SMALL(#REF!,ROW()-2),"") ->  | AW10: 1 | BA10: 1 | BE10: 86 | BF10: 8 | BI10: 8 | BJ10: 3 | BX10: 1.861361121e+17 | BY10: 8 | CC10: 7 | CE10: 3 | CG10: 4
B11: 3 | C11: =CONCATENATE(B11,"A") -> 3A | O11: =IF(ISBLANK(N11),"",IF(N11=0,$CC$2,CD11)) ->  | P11: =IF(ISNUMBER(O11),IF(ISNUMBER(O11),IF(ISNUMBER(O11),IF(ISNUMBER(O11),O11+G11+G12+G13+G14+I11+I12+I13+I14+K11+K12+K13+K14+M11+M12+M13+M14,""),""),""),"") ->  | Q11: =IF(ISNUMBER(P11),VLOOKUP(BV11,BX:BY,2,FALSE),"") ->  | AC11: 109103101102103 | AD11: 9 | AG11: 20 | AH11: 3 | AJ11: 10 | AK11: 1 | AM11: 0 | AN11: 1 | AP11: 1 | AQ11: 2 | AS11: 14 | AT11: 4 | AV11: =IF(ISNUMBER(SMALL(#REF!,ROW()-2)),SMALL(#REF!,ROW()-2),"") ->  | AW11: 1 | BA11: 1 | BE11: 93 | BF11: 9 | BI11: 9 | BJ11: 4 | BN11: =P11 ->  | BO11: =SUM(G11,G12,G13,G14) -> 0 | BP11: =SUM(I11,I12,I13,I14) -> 0 | BQ11: =SUM(K11,K12,K13,K14) -> 0 | BR11: =O11 ->  | BT11: =SUM(M11,M12,M13,M14) -> 0 | BV11: =IF(ISNUMBER(P11),CONCATENATE(BN11+100,BO11+100,BP11+100,BQ11+100,BT11+100,BR11+100)+0,"") ->  | BW11: =IF(ISNUMBER(SMALL(BV:BV,ROW()-2)),SMALL(BV:BV,ROW()-2),"") -> 1.931211081e+17 | BX11: 1.931211081e+17 | BY11: 9 | CD11: =VLOOKUP(N11,AS:AT,2,FALSE) -> 
C12: =CONCATENATE(B11,"B") -> 3B | AC12: 110103103101103 | AD12: 10 | AG12: 20 | AH12: 3 | AJ12: 10 | AK12: 1 | AM12: 0 | AN12: 1 | AP12: 1 | AQ12: 2 | AS12: 14 | AT12: 4 | AV12: =IF(ISNUMBER(SMALL(#REF!,ROW()-2)),SMALL(#REF!,ROW()-2),"") ->  | AW12: 1 | BA12: 1 | BB12: =IF(ISNUMBER(AY12),VLOOKUP(AY12,AZ:BA,2,FALSE),"") ->  | BD12: =P12 -> 0 | BE12: 104 | BF12: 10 | BG12: =IF(ISNUMBER(BD12),VLOOKUP(BD12,BE:BF,2,FALSE),"") -> 0 | BI12: 10 | BJ12: 5 | BS12: =#REF! ->  | BU12: =#REF! ->  | BX12: 2.041251051e+17 | BY12: 10
C13: =CONCATENATE(B11,"C") -> 3C | AC13: 110104101101104 | AD13: 11 | AG13: 20 | AH13: 3 | AJ13: 10 | AK13: 1 | AM13: 0 | AN13: 1 | AP13: 2 | AQ13: 3 | AS13: 13 | AT13: 5 | AV13: =IF(ISNUMBER(SMALL(#REF!,ROW()-2)),SMALL(#REF!,ROW()-2),"") ->  | AW13: 1 | BA13: 1 | BE13: 104 | BF13: 10 | BI13: 10 | BJ13: 5 | BX13: 2.041311101e+17 | BY13: 11
C14: =CONCATENATE(B11,"D") -> 3D | AC14: 110105101101103 | AD14: 12 | AG14: 20 | AH14: 3 | AJ14: 10 | AK14: 1 | AM14: 0 | AN14: 1 | AP14: 2 | AQ14: 3 | AS14: 13 | AT14: 5 | AV14: =IF(ISNUMBER(SMALL(#REF!,ROW()-2)),SMALL(#REF!,ROW()-2),"") ->  | AW14: 1 | BA14: 1 | BE14: 105 | BF14: 11 | BI14: 10 | BJ14: 5 | BX14: 2.051471171e+17 | BY14: 12
B15: 4 | C15: =CONCATENATE(B15,"A") -> 4A | D15: IZABELA SUŁKOWSKA | E15: Szkoła Podstawowa w Olszynach | F15: 15 | G15: 8 | H15: 10 | I15: 1 | J15: 3 | K15: 2 | L15: 15 | M15: 14 | N15: 11 | O15: =IF(ISBLANK(N15),"",IF(N15=0,$CC$2,CD15)) -> 7 | P15: =IF(ISNUMBER(O15),IF(ISNUMBER(O15),IF(ISNUMBER(O15),IF(ISNUMBER(O15),O15+G15+G16+G17+G18+I15+I16+I17+I18+K15+K16+K17+K18+M15+M16+M17+M18,""),""),""),"") -> 104 | Q15: =IF(ISNUMBER(P15),VLOOKUP(BV15,BX:BY,2,FALSE),"") -> 10 | R15: 25 | S15: 41 | X15: 8 | Y15: 1 | Z15: 2 | AA15: 14 | AB15: 125108101102114 | AC15: 110106101101102 | AD15: 13 | AG15: 19 | AH15: 4 | AJ15: 10 | AK15: 1 | AM15: 0 | AN15: 1 | AP15: 2 | AQ15: 3 | AS15: 12 | AT15: 6 | AV15: =IF(ISNUMBER(SMALL(#REF!,ROW()-2)),SMALL(#REF!,ROW()-2),"") ->  | AW15: 1 | BA15: 1 | BB15: =IF(ISNUMBER(AY15),VLOOKUP(AY15,AZ:BA,2,FALSE),"") ->  | BD15: =P15 -> 104 | BE15: 110 | BF15: 12 | BG15: =IF(ISNUMBER(BD15),VLOOKUP(BD15,BE:BF,2,FALSE),"") -> 10 | BI15: 10 | BJ15: 5 | BN15: =P15 -> 104 | BO15: =SUM(G15,G16,G17,G18) -> 25 | BP15: =SUM(I15,I16,I17,I18) -> 5 | BQ15: =SUM(K15,K16,K17,K18) -> 24 | BR15: =O15 -> 7 | BS15: =#REF! ->  | BT15: =SUM(M15,M16,M17,M18) -> 43 | BU15: =#REF! ->  | BV15: =IF(ISNUMBER(P15),CONCATENATE(BN15+100,BO15+100,BP15+100,BQ15+100,BT15+100,BR15+100)+0,"") -> 2.041251051e+17 | BW15: =IF(ISNUMBER(SMALL(BV:BV,ROW()-2)),SMALL(BV:BV,ROW()-2),"") -> 2.101431161e+17 | BX15: 2.101431161e+17 | BY15: 13 | CC15: 8 | CD15: =VLOOKUP(N15,AS:AT,2,FALSE) -> 7 | CE15: 2 | CG15: 1
C16: =CONCATENATE(B15,"B") -> 4B | D16: DARIA BOGDAŃSKA | F16: 16 | G16: 7 | H16: 9 | I16: 2 | J16: 36 | K16: 10 | L16: 23 | M16: 18 | R16: 37 | S16: 56 | X16: 7 | Y16: 2 | Z16: 10 | AA16: 18 | AB16: 137107102110118 | AC16: 111104103101103 | AD16: 14 | AG16: 19 | AH16: 4 | AJ16: 10 | AK16: 1 | AM16: 0 | AN16: 1 | AP16: 2 | AQ16: 3 | AS16: 12 | AT16: 6 | AV16: =IF(ISNUMBER(SMALL(#REF!,ROW()-2)),SMALL(#REF!,ROW()-2),"") ->  | AW16: 1 | BA16: 1 | BE16: 111 | BF16: 13 | BI16: 11 | BJ16: 6 | BX16: 2.111371081e+17 | BY16: 14 | CC16: 7 | CE16: 10 | CG16: 2
C17: =CONCATENATE(B15,"C") -> 4C | D17: HUBERT LASKOWSKI | F17: 16 | G17: 7 | H17: 10 | I17: 1 | J17: 9 | K17: 4 | L17: 4 | M17: 5 | R17: 17 | S17: 26 | X17: 7 | Y17: 1 | Z17: 4 | AA17: 5 | AB17: 117107101104105 | AC17: 111104103102102 | AD17: 15 | AG17: 19 | AH17: 4 | AJ17: 10 | AK17: 1 | AM17: 0 | AN17: 1 | AP17: 2 | AQ17: 3 | AS17: 11 | AT17: 7 | AV17: =IF(ISNUMBER(SMALL(#REF!,ROW()-2)),SMALL(#REF!,ROW()-2),"") ->  | AW17: 1 | BA17: 1 | BE17: 124 | BF17: 14 | BI17: 11 | BJ17: 6 | BX17: 2.241341121e+17 | BY17: 15 | CC17: 7 | CE17: 4 | CG17: 1
C18: =CONCATENATE(B15,"D") -> 4D | D18: MICHAŁ WIŚNIEWSKI | F18: 20 | G18: 3 | H18: 10 | I18: 1 | J18: 18 | K18: 8 | L18: 5 | M18: 6 | R18: 18 | S18: 28 | X18: 3 | Y18: 1 | Z18: 8 | AA18: 6 | AB18: 118103101108106 | AC18: 111106101101103 | AD18: 16 | AG18: 19 | AH18: 4 | AJ18: 10 | AK18: 1 | AM18: 0 | AN18: 1 | AP18: 2 | AQ18: 3 | AT18: 8 | AV18: =IF(ISNUMBER(SMALL(#REF!,ROW()-2)),SMALL(#REF!,ROW()-2),"") ->  | AW18: 1 | BA18: 1 | BB18: =IF(ISNUMBER(AY18),VLOOKUP(AY18,AZ:BA,2,FALSE),"") ->  | BD18: =P18 -> 0 | BF18: 15 | BG18: =IF(ISNUMBER(BD18),VLOOKUP(BD18,BE:BF,2,FALSE),"") -> 0 | BI18: 11 | BJ18: 6 | BS18: =#REF! ->  | BU18: =#REF! ->  | BY18: 16 | CC18: 3 | CE18: 8 | CG18: 1
B19: 5 | C19: =CONCATENATE(B19,"A") -> 5A | D19: JULIA OLEKSIŃSKA | E19: Zespół Szkolno-Przedszkolny w Mikluszowicach | F19: 19 | G19: 4 | H19: 8 | I19: 3 | J19: 3 | K19: 2 | L19: 1 | M19: 2 | N19: 12 | O19: =IF(ISBLANK(N19),"",IF(N19=0,$CC$2,CD19)) -> 6 | P19: =IF(ISNUMBER(O19),IF(ISNUMBER(O19),IF(ISNUMBER(O19),IF(ISNUMBER(O19),O19+G19+G20+G21+G22+I19+I20+I21+I22+K19+K20+K21+K22+M19+M20+M21+M22,""),""),""),"") -> 81 | Q19: =IF(ISNUMBER(P19),VLOOKUP(BV19,BX:BY,2,FALSE),"") -> 7 | R19: 11 | S19: 15 | X19: 4 | Y19: 3 | Z19: 2 | AA19: 2 | AB19: 111104103102102 | AC19: 111106101101103 | AD19: 16 | AG19: 19 | AH19: 4 | AJ19: 10 | AK19: 1 | AM19: 0 | AN19: 1 | AP19: 2 | AQ19: 3 | AT19: 8 | AV19: =IF(ISNUMBER(SMALL(#REF!,ROW()-2)),SMALL(#REF!,ROW()-2),"") ->  | AW19: 1 | BA19: 1 | BF19: 15 | BI19: 11 | BJ19: 6 | BN19: =P19 -> 81 | BO19: =SUM(G19,G20,G21,G22) -> 26 | BP19: =SUM(I19,I20,I21,I22) -> 15 | BQ19: =SUM(K19,K20,K21,K22) -> 13 | BR19: =O19 -> 6 | BT19: =SUM(M19,M20,M21,M22) -> 21 | BV19: =IF(ISNUMBER(P19),CONCATENATE(BN19+100,BO19+100,BP19+100,BQ19+100,BT19+100,BR19+100)+0,"") -> 1.811261151e+17 | BW19: =IF(ISNUMBER(SMALL(BV:BV,ROW()-2)),SMALL(BV:BV,ROW()-2),"") ->  | BY19: 16 | CC19: 4 | CD19: =VLOOKUP(N19,AS:AT,2,FALSE) -> 6 | CE19: 2 | CG19: 3
C20: =CONCATENATE(B19,"B") -> 5B | D20: WIKTORIA OLEKSIŃSKA | F20: 14 | G20: 9 | H20: 8 | I20: 3 | J20: 6 | K20: 3 | L20: 6 | M20: 7 | R20: 22 | S20: 35 | X20: 9 | Y20: 3 | Z20: 3 | AA20: 7 | AB20: 122109103103107 | AC20: 113105101101106 | AD20: 17 | AG20: 19 | AH20: 4 | AJ20: 10 | AK20: 1 | AM20: 0 | AN20: 1 | AP20: 2 | AQ20: 3 | AT20: 8 | AV20: =IF(ISNUMBER(SMALL(#REF!,ROW()-2)),SMALL(#REF!,ROW()-2),"") ->  | AW20: 1 | BA20: 1 | BF20: 15 | BI20: 13 | BJ20: 7 | BY20: 16 | CC20: 9 | CE20: 3 | CG20: 3
C21: =CONCATENATE(B19,"C") -> 5C | D21: RAFAŁ BUJAK | F21: 13 | G21: 10 | H21: 3 | I21: 7 | J21: 3 | K21: 2 | L21: 6 | M21: 7 | R21: 26 | S21: 45 | X21: 10 | Y21: 7 | Z21: 2 | AA21: 7 | AB21: 126110107102107 | AC21: 113107101102103 | AD21: 18 | AG21: 19 | AH21: 4 | AJ21: 10 | AK21: 1 | AM21: 0 | AN21: 1 | AP21: 2 | AQ21: 3 | AT21: 8 | AV21: =IF(ISNUMBER(SMALL(#REF!,ROW()-2)),SMALL(#REF!,ROW()-2),"") ->  | AW21: 1 | BA21: 1 | BB21: =IF(ISNUMBER(AY21),VLOOKUP(AY21,AZ:BA,2,FALSE),"") ->  | BD21: =P21 -> 0 | BF21: 15 | BG21: =IF(ISNUMBER(BD21),VLOOKUP(BD21,BE:BF,2,FALSE),"") -> 0 | BI21: 13 | BJ21: 7 | BS21: =#REF! ->  | BU21: =#REF! ->  | BY21: 16 | CC21: 10 | CE21: 2 | CG21: 7
C22: =CONCATENATE(B19,"D") -> 5D | D22: ADAM DEC | F22: 20 | G22: 3 | H22: 9 | I22: 2 | J22: 13 | K22: 6 | L22: 4 | M22: 5 | R22: 16 | S22: 25 | X22: 3 | Y22: 2 | Z22: 6 | AA22: 5 | AB22: 116103102106105 | AC22: 113108101101103 | AD22: 19 | AG22: 18 | AH22: 5 | AJ22: 10 | AK22: 1 | AM22: 0 | AN22: 1 | AP22: 3 | AQ22: 4 | AT22: 8 | AV22: =IF(ISNUMBER(SMALL(#REF!,ROW()-2)),SMALL(#REF!,ROW()-2),"") ->  | AW22: 1 | BA22: 1 | BF22: 15 | BI22: 13 | BJ22: 7 | BY22: 16 | CC22: 3 | CE22: 6 | CG22: 2
B23: 6 | C23: =CONCATENATE(B23,"A") -> 6A | D23: LENA DĘBNIAK | E23: Zespół Szkolno-Przedszkolny w Jedlińsku | F23: 20 | G23: 3 | H23: 9 | I23: 2 | J23: 0 | K23: 1 | L23: 0 | M23: 1 | N23: 14 | O23: =IF(ISBLANK(N23),"",IF(N23=0,$CC$2,CD23)) -> 4 | P23: =IF(ISNUMBER(O23),IF(ISNUMBER(O23),IF(ISNUMBER(O23),IF(ISNUMBER(O23),O23+G23+G24+G25+G26+I23+I24+I25+I26+K23+K24+K25+K26+M23+M24+M25+M26,""),""),""),"") -> 55 | Q23: =IF(ISNUMBER(P23),VLOOKUP(BV23,BX:BY,2,FALSE),"") -> 4 | R23: 7 | S23: 4 | X23: 3 | Y23: 2 | Z23: 1 | AA23: 1 | AB23: 107103102101101 | AC23: 113109101101102 | AD23: 20 | AG23: 18 | AH23: 5 | AJ23: 10 | AK23: 1 | AM23: 0 | AN23: 1 | AP23: 3 | AQ23: 4 | AT23: 8 | AV23: =IF(ISNUMBER(SMALL(#REF!,ROW()-2)),SMALL(#REF!,ROW()-2),"") ->  | AW23: 1 | BA23: 1 | BF23: 15 | BI23: 13 | BJ23: 7 | BN23: =P23 -> 55 | BO23: =SUM(G23,G24,G25,G26) -> 17 | BP23: =SUM(I23,I24,I25,I26) -> 7 | BQ23: =SUM(K23,K24,K25,K26) -> 11 | BR23: =O23 -> 4 | BT23: =SUM(M23,M24,M25,M26) -> 16 | BV23: =IF(ISNUMBER(P23),CONCATENATE(BN23+100,BO23+100,BP23+100,BQ23+100,BT23+100,BR23+100)+0,"") -> 1.551171071e+17 | BW23: =IF(ISNUMBER(SMALL(BV:BV,ROW()-2)),SMALL(BV:BV,ROW()-2),"") ->  | BY23: 16 | CC23: 3 | CD23: =VLOOKUP(N23,AS:AT,2,FALSE) -> 4 | CE23: 1 | CG23: 2
C24: =CONCATENATE(B23,"B") -> 6B | D24: KLAUDIA MAZUR | F24: 18 | G24: 5 | H24: 10 | I24: 1 | J24: 0 | K24: 1 | L24: 5 | M24: 6 | R24: 13 | S24: 17 | X24: 5 | Y24: 1 | Z24: 1 | AA24: 6 | AB24: 113105101101106 | AC24: 114104103101106 | AD24: 21 | AG24: 18 | AH24: 5 | AJ24: 10 | AK24: 1 | AM24: 3 | AN24: 2 | AP24: 3 | AQ24: 4 | AT24: 8 | AV24: =IF(ISNUMBER(SMALL(#REF!,ROW()-2)),SMALL(#REF!,ROW()-2),"") ->  | AW24: 1 | BA24: 1 | BB24: =IF(ISNUMBER(AY24),VLOOKUP(AY24,AZ:BA,2,FALSE),"") ->  | BD24: =P24 -> 0 | BF24: 15 | BG24: =IF(ISNUMBER(BD24),VLOOKUP(BD24,BE:BF,2,FALSE),"") -> 0 | BI24: 14 | BJ24: 8 | BS24: =#REF! ->  | BU24: =#REF! ->  | BY24: 16 | CC24: 5 | CE24: 1 | CG24: 1
C25: =CONCATENATE(B23,"C") -> 6C | D25: PATRYK MALINOWSKI | F25: 17 | G25: 6 | H25: 9 | I25: 2 | J25: 15 | K25: 7 | L25: 7 | M25: 8 | R25: 23 | S25: 38 | X25: 6 | Y25: 2 | Z25: 7 | AA25: 8 | AB25: 123106102107108 | AC25: 114105101102106 | AD25: 22 | AG25: 17 | AH25: 6 | AJ25: 9 | AK25: 2 | AM25: 3 | AN25: 2 | AP25: 3 | AQ25: 4 | AT25: 8 | AV25: =IF(ISNUMBER(SMALL(#REF!,ROW()-2)),SMALL(#REF!,ROW()-2),"") ->  | AW25: 1 | BA25: 1 | BF25: 15 | BI25: 14 | BJ25: 8 | BY25: 16 | CC25: 6 | CE25: 7 | CG25: 2
C26: =CONCATENATE(B23,"D") -> 6D | D26: IGOR SZYMANOWICZ | F26: 20 | G26: 3 | H26: 9 | I26: 2 | J26: 3 | K26: 2 | L26: 0 | M26: 1 | R26: 8 | S26: 7 | X26: 3 | Y26: 2 | Z26: 2 | AA26: 1 | AB26: 108103102102101 | AC26: 114107102101104 | AD26: 23 | AG26: 17 | AH26: 6 | AJ26: 9 | AK26: 2 | AM26: 3 | AN26: 2 | AP26: 4 | AQ26: 5 | AT26: 8 | AV26: =IF(ISNUMBER(SMALL(#REF!,ROW()-2)),SMALL(#REF!,ROW()-2),"") ->  | AW26: 1 | BA26: 1 | BF26: 15 | BI26: 14 | BJ26: 8 | BY26: 16 | CC26: 3 | CE26: 2 | CG26: 2
B27: 7 | C27: =CONCATENATE(B27,"A") -> 7A | D27: PIOTR KACZOR | E27: Szkoła Podstawowa nr 1 we Włoszczowie | F27: 16 | G27: 7 | H27: 10 | I27: 1 | J27: 3 | K27: 2 | L27: 2 | M27: 3 | N27: 17 | O27: =IF(ISBLANK(N27),"",IF(N27=0,$CC$2,CD27)) -> 1 | P27: =IF(ISNUMBER(O27),IF(ISNUMBER(O27),IF(ISNUMBER(O27),IF(ISNUMBER(O27),O27+G27+G28+G29+G30+I27+I28+I29+I30+K27+K28+K29+K30+M27+M28+M29+M30,""),""),""),"") -> 86 | Q27: =IF(ISNUMBER(P27),VLOOKUP(BV27,BX:BY,2,FALSE),"") -> 8 | R27: 13 | S27: 18 | X27: 7 | Y27: 1 | Z27: 2 | AA27: 3 | AB27: 113107101102103 | AC27: 114107102104101 | AD27: 24 | AG27: 17 | AH27: 6 | AJ27: 9 | AK27: 2 | AM27: 3 | AN27: 2 | AP27: 4 | AQ27: 5 | AT27: 8 | AV27: =IF(ISNUMBER(SMALL(#REF!,ROW()-2)),SMALL(#REF!,ROW()-2),"") ->  | AW27: 1 | BA27: 1 | BB27: =IF(ISNUMBER(AY27),VLOOKUP(AY27,AZ:BA,2,FALSE),"") ->  | BD27: =P27 -> 86 | BF27: 15 | BG27: =IF(ISNUMBER(BD27),VLOOKUP(BD27,BE:BF,2,FALSE),"") -> 8 | BI27: 14 | BJ27: 8 | BN27: =P27 -> 86 | BO27: =SUM(G27,G28,G29,G30) -> 36 | BP27: =SUM(I27,I28,I29,I30) -> 12 | BQ27: =SUM(K27,K28,K29,K30) -> 8 | BR27: =O27 -> 1 | BS27: =#REF! ->  | BT27: =SUM(M27,M28,M29,M30) -> 29 | BU27: =#REF! ->  | BV27: =IF(ISNUMBER(P27),CONCATENATE(BN27+100,BO27+100,BP27+100,BQ27+100,BT27+100,BR27+100)+0,"") -> 1.861361121e+17 | BW27: =IF(ISNUMBER(SMALL(BV:BV,ROW()-2)),SMALL(BV:BV,ROW()-2),"") ->  | BY27: 16 | CC27: 7 | CD27: =VLOOKUP(N27,AS:AT,2,FALSE) -> 1 | CE27: 2 | CG27: 1
C28: =CONCATENATE(B27,"B") -> 7B | D28: JOANNA SULIGA | F28: 12 | G28: 11 | H28: 10 | I28: 1 | J28: 3 | K28: 2 | L28: 9 | M28: 10 | R28: 24 | S28: 40 | X28: 11 | Y28: 1 | Z28: 2 | AA28: 10 | AB28: 124111101102110 | AC28: 116103102106105 | AD28: 25 | AG28: 17 | AH28: 6 | AJ28: 9 | AK28: 2 | AM28: 3 | AN28: 2 | AP28: 4 | AQ28: 5 | AT28: 8 | AV28: =IF(ISNUMBER(SMALL(#REF!,ROW()-2)),SMALL(#REF!,ROW()-2),"") ->  | AW28: 1 | BA28: 1 | BF28: 15 | BI28: 16 | BJ28: 9 | BY28: 16 | CC28: 11 | CE28: 2 | CG28: 1
C29: =CONCATENATE(B27,"C") -> 7C | D29: WIKTORIA JANDUŁA | F29: 9 | G29: 14 | H29: 2 | I29: 8 | J29: 6 | K29: 3 | L29: 17 | M29: 15 | R29: 40 | S29: 58 | X29: 14 | Y29: 8 | Z29: 3 | AA29: 15 | AB29: 140114108103115 | AC29: 117107101104105 | AD29: 26 | AG29: 17 | AH29: 6 | AJ29: 9 | AK29: 2 | AM29: 3 | AN29: 2 | AP29: 4 | AQ29: 5 | AT29: 8 | AV29: =IF(ISNUMBER(SMALL(#REF!,ROW()-2)),SMALL(#REF!,ROW()-2),"") ->  | AW29: 1 | BA29: 1 | BF29: 15 | BI29: 17 | BJ29: 10 | BY29: 16 | CC29: 14 | CE29: 3 | CG29: 8
C30: =CONCATENATE(B27,"D") -> 7D | D30: KAJETAN SZTUKA | F30: 19 | G30: 4 | H30: 9 | I30: 2 | J30: 0 | K30: 1 | L30: 0 | M30: 1 | R30: 8 | S30: 8 | X30: 4 | Y30: 2 | Z30: 1 | AA30: 1 | AB30: 108104102101101 | AC30: 118101101102114 | AD30: 27 | AG30: 16 | AH30: 7 | AJ30: 9 | AK30: 2 | AM30: 3 | AN30: 2 | AP30: 4 | AQ30: 5 | AT30: 8 | AV30: =IF(ISNUMBER(SMALL(#REF!,ROW()-2)),SMALL(#REF!,ROW()-2),"") ->  | AW30: 1 | BA30: 1 | BB30: =IF(ISNUMBER(AY30),VLOOKUP(AY30,AZ:BA,2,FALSE),"") ->  | BD30: =P30 -> 0 | BF30: 15 | BG30: =IF(ISNUMBER(BD30),VLOOKUP(BD30,BE:BF,2,FALSE),"") -> 0 | BI30: 18 | BJ30: 11 | BS30: =#REF! ->  | BU30: =#REF! ->  | BY30: 16 | CC30: 4 | CE30: 1 | CG30: 2
B31: 8 | C31: =CONCATENATE(B31,"A") -> 8A | D31: KAROL KAZIMIERCZAK | E31: Szkoła Podstawowa nr 1 w Koluszkach | F31: 15 | G31: 8 | H31: 10 | I31: 1 | J31: 0 | K31: 1 | L31: 2 | M31: 3 | N31: 16 | O31: =IF(ISBLANK(N31),"",IF(N31=0,$CC$2,CD31)) -> 2 | P31: =IF(ISNUMBER(O31),IF(ISNUMBER(O31),IF(ISNUMBER(O31),IF(ISNUMBER(O31),O31+G31+G32+G33+G34+I31+I32+I33+I34+K31+K32+K33+K34+M31+M32+M33+M34,""),""),""),"") -> 60 | Q31: =IF(ISNUMBER(P31),VLOOKUP(BV31,BX:BY,2,FALSE),"") -> 5 | R31: 13 | S31: 19 | X31: 8 | Y31: 1 | Z31: 1 | AA31: 3 | AB31: 113108101101103 | AC31: 118103101108106 | AD31: 28 | AG31: 16 | AH31: 7 | AJ31: 9 | AK31: 2 | AM31: 3 | AN31: 2 | AP31: 4 | AQ31: 5 | AT31: 8 | AV31: =IF(ISNUMBER(SMALL(#REF!,ROW()-2)),SMALL(#REF!,ROW()-2),"") ->  | AW31: 1 | BA31: 1 | BF31: 15 | BI31: 18 | BJ31: 11 | BN31: =P31 -> 60 | BO31: =SUM(G31,G32,G33,G34) -> 31 | BP31: =SUM(I31,I32,I33,I34) -> 5 | BQ31: =SUM(K31,K32,K33,K34) -> 4 | BR31: =O31 -> 2 | BT31: =SUM(M31,M32,M33,M34) -> 18 | BV31: =IF(ISNUMBER(P31),CONCATENATE(BN31+100,BO31+100,BP31+100,BQ31+100,BT31+100,BR31+100)+0,"") -> 1.601311051e+17 | BW31: =IF(ISNUMBER(SMALL(BV:BV,ROW()-2)),SMALL(BV:BV,ROW()-2),"") ->  | BY31: 16 | CC31: 8 | CD31: =VLOOKUP(N31,AS:AT,2,FALSE) -> 2 | CE31: 1 | CG31: 1
C32: =CONCATENATE(B31,"B") -> 8B | D32: SZYMON GARBARSKI | F32: 14 | G32: 9 | H32: 10 | I32: 1 | J32: 0 | K32: 1 | L32: 1 | M32: 2 | R32: 13 | S32: 20 | X32: 9 | Y32: 1 | Z32: 1 | AA32: 2 | AB32: 113109101101102 | AC32: 119109102102106 | AD32: 29 | AG32: 16 | AH32: 7 | AJ32: 9 | AK32: 2 | AM32: 3 | AN32: 2 | AP32: 5 | AQ32: 6 | AT32: 8 | AV32: =IF(ISNUMBER(SMALL(#REF!,ROW()-2)),SMALL(#REF!,ROW()-2),"") ->  | AW32: 1 | BA32: 1 | BF32: 15 | BI32: 19 | BJ32: 12 | BY32: 16 | CC32: 9 | CE32: 1 | CG32: 1
C33: =CONCATENATE(B31,"C") -> 8C | D33: ZUZANNA MARCZYK | F33: 15 | G33: 8 | H33: 9 | I33: 2 | J33: 0 | K33: 1 | L33: 9 | M33: 10 | R33: 21 | S33: 32 | X33: 8 | Y33: 2 | Z33: 1 | AA33: 10 | AB33: 121108102101110 | AC33: 119110102103104 | AD33: 30 | AG33: 16 | AH33: 7 | AJ33: 9 | AK33: 2 | AM33: 3 | AN33: 2 | AP33: 5 | AQ33: 6 | AT33: 8 | AV33: =IF(ISNUMBER(SMALL(#REF!,ROW()-2)),SMALL(#REF!,ROW()-2),"") ->  | AW33: 1 | BA33: 1 | BB33: =IF(ISNUMBER(AY33),VLOOKUP(AY33,AZ:BA,2,FALSE),"") ->  | BD33: =P33 -> 0 | BF33: 15 | BG33: =IF(ISNUMBER(BD33),VLOOKUP(BD33,BE:BF,2,FALSE),"") -> 0 | BI33: 19 | BJ33: 12 | BS33: =#REF! ->  | BU33: =#REF! ->  | BY33: 16 | CC33: 8 | CE33: 1 | CG33: 2
C34: =CONCATENATE(B31,"D") -> 8D | D34: WIKTORIA GRACZYK | F34: 17 | G34: 6 | H34: 10 | I34: 1 | J34: 0 | K34: 1 | L34: 2 | M34: 3 | R34: 11 | S34: 16 | X34: 6 | Y34: 1 | Z34: 1 | AA34: 3 | AB34: 111106101101103 | AC34: 120102102104112 | AD34: 31 | AG34: 16 | AH34: 7 | AJ34: 9 | AK34: 2 | AM34: 3 | AN34: 2 | AP34: 5 | AQ34: 6 | AT34: 8 | AV34: =IF(ISNUMBER(SMALL(#REF!,ROW()-2)),SMALL(#REF!,ROW()-2),"") ->  | AW34: 1 | BA34: 1 | BF34: 15 | BI34: 20 | BJ34: 13 | BY34: 16 | CC34: 6 | CE34: 1 | CG34: 1
B35: 9 | C35: =CONCATENATE(B35,"A") -> 9A | D35: ANGELIKA GOŁĄBIEWSKA | E35: Szkoła Podstawowa nr 1 w Koronowie | F35: 14 | G35: =IF(ISBLANK(F35),"",IF(F35=0,$CB$2,CC35)) -> 9 | H35: 9 | I35: =IF(ISBLANK(H35),"",IF(H35=0,$CF$2,CG35)) -> 2 | J35: 15 | K35: =IF(ISNUMBER(J35),VLOOKUP(J35,AM:AN,2,FALSE),"") -> 7 | L35: 6 | M35: =IF(ISNUMBER(L35),VLOOKUP(L35,AP:AQ,2,FALSE),"") -> 7 | N35: 14 | O35: =IF(ISBLANK(N35),"",IF(N35=0,$CC$2,CD35)) -> 4 | P35: =IF(ISNUMBER(O35),IF(ISNUMBER(O35),IF(ISNUMBER(O35),IF(ISNUMBER(O35),O35+G35+G36+G37+G38+I35+I36+I37+I38+K35+K36+K37+K38+M35+M36+M37+M38,""),""),""),"") -> 111 | Q35: =IF(ISNUMBER(P35),VLOOKUP(BV35,BX:BY,2,FALSE),"") -> 14 | R35: 25 | S35: =IF(ISNUMBER(R35),VLOOKUP(AB35,AC:AD,2,FALSE),"") -> 42 | X35: 9 | Y35: 2 | Z35: =K35 -> 7 | AA35: =M35 -> 7 | AB35: 125109102107107 | AC35: =IF(ISNUMBER(SMALL(AB:AB,ROW()-2)),SMALL(AB:AB,ROW()-2),"") -> 121108102101110 | AD35: 32 | AG35: =IF(ISNUMBER(LARGE(F:F,ROW()-2)),LARGE(F:F,ROW()-2),"") -> 16 | AH35: 7 | AJ35: =IF(ISNUMBER(LARGE(H:H,ROW()-2)),LARGE(H:H,ROW()-2),"") -> 9 | AK35: 2 | AM35: =IF(ISNUMBER(SMALL(J:J,ROW()-2)),SMALL(J:J,ROW()-2),"") -> 3 | AN35: 2 | AP35: =IF(ISNUMBER(SMALL(L:L,ROW()-2)),SMALL(L:L,ROW()-2),"") -> 5 | AQ35: 6 | AS35: =IF(ISNUMBER(LARGE(N:N,ROW()-2)),LARGE(N:N,ROW()-2),"") ->  | AT35: 8 | AV35: =IF(ISNUMBER(SMALL(#REF!,ROW()-2)),SMALL(#REF!,ROW()-2),"") ->  | AW35: 1 | AZ35: =IF(ISNUMBER(LARGE(AY:AY,ROW()-2)),LARGE(AY:AY,ROW()-2),"") ->  | BA35: 1 | BE35: =IF(ISNUMBER(SMALL(P:P,ROW()-2)),SMALL(P:P,ROW()-2),"") ->  | BF35: 15 | BI35: =IF(ISNUMBER(SMALL(R:R,ROW()-2)),SMALL(R:R,ROW()-2),"") -> 21 | BJ35: 14 | BN35: =P35 -> 111 | BO35: =SUM(G35,G36,G37,G38) -> 37 | BP35: =SUM(I35,I36,I37,I38) -> 8 | BQ35: =SUM(K35,K36,K37,K38) -> 21 | BR35: =O35 -> 4 | BT35: =SUM(M35,M36,M37,M38) -> 41 | BV35: =IF(ISNUMBER(P35),CONCATENATE(BN35+100,BO35+100,BP35+100,BQ35+100,BT35+100,BR35+100)+0,"") -> 2.111371081e+17 | BW35: =IF(ISNUMBER(SMALL(BV:BV,ROW()-2)),SMALL(BV:BV,ROW()-2),"") ->  | BX35: =IF(ISNUMBER(SMALL(BV:BV,ROW()-2)),SMALL(BV:BV,ROW()-2),"") ->  | BY35: 16 | CC35: =VLOOKUP(F35,AG:AH,2,FALSE) -> 9 | CD35: =VLOOKUP(N35,AS:AT,2,FALSE) -> 4 | CE35: =IF(ISNUMBER(J35),VLOOKUP(J35,AM:AN,2,FALSE),"") -> 7 | CG35: =VLOOKUP(H35,AJ:AK,2,FALSE) -> 2
C36: =CONCATENATE(B35,"B") -> 9B | D36: MAKSYMILIAN MEYZE | F36: 10 | G36: 13 | H36: 9 | I36: 2 | J36: 6 | K36: 3 | L36: 14 | M36: 13 | R36: 31 | S36: 52 | X36: 13 | Y36: 2 | Z36: 3 | AA36: 13 | AB36: 131113102103113 | AC36: 121112101104104 | AD36: 33 | AG36: 16 | AH36: =IF(AG35<>AG36,AH35+1,AH35) -> 7 | AJ36: 9 | AK36: 2 | AM36: 3 | AN36: 2 | AP36: 5 | AQ36: 6 | AT36: 8 | AV36: =IF(ISNUMBER(SMALL(#REF!,ROW()-2)),SMALL(#REF!,ROW()-2),"") ->  | AW36: 1 | BA36: 1 | BB36: =IF(ISNUMBER(AY36),VLOOKUP(AY36,AZ:BA,2,FALSE),"") ->  | BD36: =P36 -> 0 | BF36: 15 | BG36: =IF(ISNUMBER(BD36),VLOOKUP(BD36,BE:BF,2,FALSE),"") -> 0 | BI36: 21 | BJ36: 14 | BS36: =#REF! ->  | BU36: =#REF! ->  | BY36: 16 | CC36: 13 | CE36: 3 | CG36: 2
C37: =CONCATENATE(B35,"C") -> 9C | D37: MATEUSZ SKÓRZEWSKI | F37: 12 | G37: 11 | H37: 9 | I37: 2 | J37: 3 | K37: 2 | L37: 6 | M37: 7 | R37: 22 | S37: 37 | X37: 11 | Y37: 2 | Z37: 2 | AA37: 7 | AB37: 122111102102107 | AC37: 122109101101111 | AD37: 34 | AG37: 15 | AH37: 8 | AJ37: 9 | AK37: 2 | AM37: 3 | AN37: 2 | AP37: 6 | AQ37: 7 | AT37: 8 | AV37: =IF(ISNUMBER(SMALL(#REF!,ROW()-2)),SMALL(#REF!,ROW()-2),"") ->  | AW37: 1 | BA37: 1 | BF37: 15 | BI37: 22 | BJ37: 15 | BY37: 16 | CC37: 11 | CE37: 2 | CG37: 2
C38: =CONCATENATE(B35,"D") -> 9D | D38: KLAUDIA ZABLOCKA | F38: 19 | G38: 4 | H38: 9 | I38: 2 | J38: 24 | K38: 9 | L38: 15 | M38: 14 | R38: 29 | S38: 50 | X38: 4 | Y38: 2 | Z38: 9 | AA38: 14 | AB38: 129104102109114 | AC38: 122109103103107 | AD38: 35 | AG38: 15 | AH38: 8 | AJ38: 9 | AK38: 2 | AM38: 6 | AN38: 3 | AP38: 6 | AQ38: 7 | AT38: 8 | AV38: =IF(ISNUMBER(SMALL(#REF!,ROW()-2)),SMALL(#REF!,ROW()-2),"") ->  | AW38: 1 | BA38: 1 | BF38: 15 | BI38: 22 | BJ38: 15 | BY38: 16 | CC38: 4 | CE38: 9 | CG38: 2
B39: 10 | C39: =CONCATENATE(B39,"A") -> 10A | D39: ZUZANNA BOLECHOWSKA | E39: Szkoła Podstawowa w Ustroniu Morskim | F39: 14 | G39: 9 | H39: 6 | I39: 5 | J39: 9 | K39: 4 | L39: 6 | M39: 7 | N39: 14 | O39: =IF(ISBLANK(N39),"",IF(N39=0,$CC$2,CD39)) -> 4 | P39: =IF(ISNUMBER(O39),IF(ISNUMBER(O39),IF(ISNUMBER(O39),IF(ISNUMBER(O39),O39+G39+G40+G41+G42+I39+I40+I41+I42+K39+K40+K41+K42+M39+M40+M41+M42,""),""),""),"") -> 105 | Q39: =IF(ISNUMBER(P39),VLOOKUP(BV39,BX:BY,2,FALSE),"") -> 12 | R39: 25 | S39: 43 | X39: 9 | Y39: 5 | Z39: 4 | AA39: 7 | AB39: 125109105104107 | AC39: 122109105101107 | AD39: 36 | AG39: 15 | AH39: 8 | AJ39: 9 | AK39: 2 | AM39: 6 | AN39: 3 | AP39: 6 | AQ39: 7 | AT39: 8 | AV39: =IF(ISNUMBER(SMALL(#REF!,ROW()-2)),SMALL(#REF!,ROW()-2),"") ->  | AW39: 1 | BA39: 1 | BB39: =IF(ISNUMBER(AY39),VLOOKUP(AY39,AZ:BA,2,FALSE),"") ->  | BD39: =P39 -> 105 | BF39: 15 | BG39: =IF(ISNUMBER(BD39),VLOOKUP(BD39,BE:BF,2,FALSE),"") -> 11 | BI39: 22 | BJ39: 15 | BN39: =P39 -> 105 | BO39: =SUM(G39,G40,G41,G42) -> 47 | BP39: =SUM(I39,I40,I41,I42) -> 17 | BQ39: =SUM(K39,K40,K41,K42) -> 16 | BR39: =O39 -> 4 | BS39: =#REF! ->  | BT39: =SUM(M39,M40,M41,M42) -> 21 | BU39: =#REF! ->  | BV39: =IF(ISNUMBER(P39),CONCATENATE(BN39+100,BO39+100,BP39+100,BQ39+100,BT39+100,BR39+100)+0,"") -> 2.051471171e+17 | BW39: =IF(ISNUMBER(SMALL(BV:BV,ROW()-2)),SMALL(BV:BV,ROW()-2),"") ->  | BY39: 16 | CC39: 9 | CD39: =VLOOKUP(N39,AS:AT,2,FALSE) -> 4 | CE39: 4 | CG39: 5
C40: =CONCATENATE(B39,"B") -> 10B | D40: MATEUSZ CIBA | F40: 11 | G40: 12 | H40: 6 | I40: 5 | J40: 9 | K40: 4 | L40: 4 | M40: 5 | R40: 26 | S40: 46 | X40: 12 | Y40: 5 | Z40: 4 | AA40: 5 | AB40: 126112105104105 | AC40: 122111102102107 | AD40: 37 | AG40: 14 | AH40: 9 | AJ40: 9 | AK40: 2 | AM40: 6 | AN40: 3 | AP40: 6 | AQ40: 7 | AT40: 8 | AV40: =IF(ISNUMBER(SMALL(#REF!,ROW()-2)),SMALL(#REF!,ROW()-2),"") ->  | AW40: 1 | BA40: 1 | BF40: 15 | BI40: 22 | BJ40: 15 | BY40: 16 | CC40: 12 | CE40: 4 | CG40: 5
C41: =CONCATENATE(B39,"C") -> 10C | D41: SAMMY DUDEK | F41: 9 | G41: 14 | H41: 5 | I41: 6 | J41: 9 | K41: 4 | L41: 4 | M41: 5 | R41: 29 | S41: 51 | X41: 14 | Y41: 6 | Z41: 4 | AA41: 5 | AB41: 129114106104105 | AC41: 123106102107108 | AD41: 38 | AG41: 14 | AH41: 9 | AJ41: 9 | AK41: 2 | AM41: 6 | AN41: 3 | AP41: 6 | AQ41: 7 | AT41: 8 | AV41: =IF(ISNUMBER(SMALL(#REF!,ROW()-2)),SMALL(#REF!,ROW()-2),"") ->  | AW41: 1 | BA41: 1 | BF41: 15 | BI41: 23 | BJ41: 16 | BY41: 16 | CC41: 14 | CE41: 4 | CG41: 6
C42: =CONCATENATE(B39,"D") -> 10D | D42: MAŁGORZATA ZAJĄC | F42: 11 | G42: 12 | H42: 10 | I42: 1 | J42: 9 | K42: 4 | L42: 3 | M42: 4 | R42: 21 | S42: 33 | X42: 12 | Y42: 1 | Z42: 4 | AA42: 4 | AB42: 121112101104104 | AC42: 124107102103112 | AD42: 39 | AG42: 14 | AH42: 9 | AJ42: 9 | AK42: 2 | AM42: 6 | AN42: 3 | AP42: 6 | AQ42: 7 | AT42: 8 | AV42: =IF(ISNUMBER(SMALL(#REF!,ROW()-2)),SMALL(#REF!,ROW()-2),"") ->  | AW42: 1 | BA42: 1 | BB42: =IF(ISNUMBER(AY42),VLOOKUP(AY42,AZ:BA,2,FALSE),"") ->  | BD42: =P42 -> 0 | BF42: 15 | BG42: =IF(ISNUMBER(BD42),VLOOKUP(BD42,BE:BF,2,FALSE),"") -> 0 | BI42: 24 | BJ42: 17 | BS42: =#REF! ->  | BU42: =#REF! ->  | BY42: 16 | CC42: 12 | CE42: 4 | CG42: 1
B43: 11 | C43: =CONCATENATE(B43,"A") -> 11A | D43: NATALIA RUCIŃSKA | E43: Szkoła Podstawowa nr 1 w Iławie | F43: 14 | G43: 9 | H43: 9 | I43: 2 | J43: 3 | K43: 2 | L43: 5 | M43: 6 | N43: 13 | O43: =IF(ISBLANK(N43),"",IF(N43=0,$CC$2,CD43)) -> 5 | P43: =IF(ISNUMBER(O43),IF(ISNUMBER(O43),IF(ISNUMBER(O43),IF(ISNUMBER(O43),O43+G43+G44+G45+G46+I43+I44+I45+I46+K43+K44+K45+K46+M43+M44+M45+M46,""),""),""),"") -> 104 | Q43: =IF(ISNUMBER(P43),VLOOKUP(BV43,BX:BY,2,FALSE),"") -> 11 | R43: 19 | S43: 29 | X43: 9 | Y43: 2 | Z43: 2 | AA43: 6 | AB43: 119109102102106 | AC43: 124111101102110 | AD43: 40 | AG43: 14 | AH43: 9 | AJ43: 9 | AK43: 2 | AM43: 6 | AN43: 3 | AP43: 7 | AQ43: 8 | AT43: 8 | AV43: =IF(ISNUMBER(SMALL(#REF!,ROW()-2)),SMALL(#REF!,ROW()-2),"") ->  | AW43: 1 | BA43: 1 | BF43: 15 | BI43: 24 | BJ43: 17 | BN43: =P43 -> 104 | BO43: =SUM(G43,G44,G45,G46) -> 31 | BP43: =SUM(I43,I44,I45,I46) -> 10 | BQ43: =SUM(K43,K44,K45,K46) -> 17 | BR43: =O43 -> 5 | BT43: =SUM(M43,M44,M45,M46) -> 41 | BV43: =IF(ISNUMBER(P43),CONCATENATE(BN43+100,BO43+100,BP43+100,BQ43+100,BT43+100,BR43+100)+0,"") -> 2.041311101e+17 | BW43: =IF(ISNUMBER(SMALL(BV:BV,ROW()-2)),SMALL(BV:BV,ROW()-2),"") ->  | BY43: 16 | CC43: 9 | CD43: =VLOOKUP(N43,AS:AT,2,FALSE) -> 5 | CE43: 2 | CG43: 2
C44: =CONCATENATE(B43,"B") -> 11B | D44: MACIEJ KWIETKO BĘBNOWSKI | F44: 22 | G44: 2 | H44: 9 | I44: 2 | J44: 9 | K44: 4 | L44: 12 | M44: 12 | R44: 20 | S44: 31 | X44: 2 | Y44: 2 | Z44: 4 | AA44: 12 | AB44: 120102102104112 | AC44: 125108101102114 | AD44: 41 | AG44: 14 | AH44: 9 | AJ44: 9 | AK44: 2 | AM44: 6 | AN44: 3 | AP44: 8 | AQ44: 9 | AT44: 8 | AV44: =IF(ISNUMBER(SMALL(#REF!,ROW()-2)),SMALL(#REF!,ROW()-2),"") ->  | AW44: 1 | BA44: 1 | BF44: 15 | BI44: 25 | BJ44: 18 | BY44: 16 | CC44: 2 | CE44: 4 | CG44: 2
C45: =CONCATENATE(B43,"C") -> 11C | D45: WIKTORIA MARKOWSKA | F45: 13 | G45: 10 | H45: 8 | I45: 3 | J45: 13 | K45: 6 | L45: 15 | M45: 14 | R45: 33 | S45: 54 | X45: 10 | Y45: 3 | Z45: 6 | AA45: 14 | AB45: 133110103106114 | AC45: 125109102107107 | AD45: 42 | AG45: 14 | AH45: 9 | AJ45: 8 | AK45: 3 | AM45: 9 | AN45: 4 | AP45: 9 | AQ45: 10 | AT45: 8 | AV45: =IF(ISNUMBER(SMALL(#REF!,ROW()-2)),SMALL(#REF!,ROW()-2),"") ->  | AW45: 1 | BA45: 1 | BB45: =IF(ISNUMBER(AY45),VLOOKUP(AY45,AZ:BA,2,FALSE),"") ->  | BD45: =P45 -> 0 | BF45: 15 | BG45: =IF(ISNUMBER(BD45),VLOOKUP(BD45,BE:BF,2,FALSE),"") -> 0 | BI45: 25 | BJ45: 18 | BS45: =#REF! ->  | BU45: =#REF! ->  | BY45: 16 | CC45: 10 | CE45: 6 | CG45: 3
C46: =CONCATENATE(B43,"D") -> 11D | D46: SZYMON MAJEWSKI | F46: 13 | G46: 10 | H46: 8 | I46: 3 | J46: 12 | K46: 5 | L46: 8 | M46: 9 | R46: 27 | S46: 48 | X46: 10 | Y46: 3 | Z46: 5 | AA46: 9 | AB46: 127110103105109 | AC46: 125109105104107 | AD46: 43 | AG46: 14 | AH46: 9 | AJ46: 8 | AK46: 3 | AM46: 9 | AN46: 4 | AP46: 9 | AQ46: 10 | AT46: 8 | AV46: =IF(ISNUMBER(SMALL(#REF!,ROW()-2)),SMALL(#REF!,ROW()-2),"") ->  | AW46: 1 | BA46: 1 | BF46: 15 | BI46: 25 | BJ46: 18 | BY46: 16 | CC46: 10 | CE46: 5 | CG46: 3
B47: 12 | C47: =CONCATENATE(B47,"A") -> 12A | D47: OSKAR KNAPIK | E47: Szkoła Podstawowa w Kroczycach | F47: 20 | G47: 3 | H47: 8 | I47: 3 | J47: 0 | K47: 1 | L47: 2 | M47: 3 | N47: 16 | O47: =IF(ISBLANK(N47),"",IF(N47=0,$CC$2,CD47)) -> 2 | P47: =IF(ISNUMBER(O47),IF(ISNUMBER(O47),IF(ISNUMBER(O47),IF(ISNUMBER(O47),O47+G47+G48+G49+G50+I47+I48+I49+I50+K47+K48+K49+K50+M47+M48+M49+M50,""),""),""),"") -> 93 | Q47: =IF(ISNUMBER(P47),VLOOKUP(BV47,BX:BY,2,FALSE),"") -> 9 | R47: 10 | S47: 10 | X47: 3 | Y47: 3 | Z47: 1 | AA47: 3 | AB47: 110103103101103 | AC47: 126107104103112 | AD47: 44 | AG47: 14 | AH47: 9 | AJ47: 8 | AK47: 3 | AM47: 9 | AN47: 4 | AP47: 11 | AQ47: 11 | AT47: 8 | AV47: =IF(ISNUMBER(SMALL(#REF!,ROW()-2)),SMALL(#REF!,ROW()-2),"") ->  | AW47: 1 | BA47: 1 | BF47: 15 | BI47: 26 | BJ47: 19 | BN47: =P47 -> 93 | BO47: =SUM(G47,G48,G49,G50) -> 21 | BP47: =SUM(I47,I48,I49,I50) -> 8 | BQ47: =SUM(K47,K48,K49,K50) -> 17 | BR47: =O47 -> 2 | BT47: =SUM(M47,M48,M49,M50) -> 45 | BV47: =IF(ISNUMBER(P47),CONCATENATE(BN47+100,BO47+100,BP47+100,BQ47+100,BT47+100,BR47+100)+0,"") -> 1.931211081e+17 | BW47: =IF(ISNUMBER(SMALL(BV:BV,ROW()-2)),SMALL(BV:BV,ROW()-2),"") ->  | BY47: 16 | CC47: 3 | CD47: =VLOOKUP(N47,AS:AT,2,FALSE) -> 2 | CE47: 1 | CG47: 3
C48: =CONCATENATE(B47,"B") -> 12B | D48: KACPER KAŃKA | F48: 13 | G48: 10 | H48: 9 | I48: 2 | J48: 40 | K48: 11 | L48: 18 | M48: 16 | R48: 39 | S48: 57 | X48: 10 | Y48: 2 | Z48: 11 | AA48: 16 | AB48: 139110102111116 | AC48: 126110107102107 | AD48: 45 | AG48: 13 | AH48: 10 | AJ48: 8 | AK48: 3 | AM48: 9 | AN48: 4 | AP48: 12 | AQ48: 12 | AT48: 8 | AV48: =IF(ISNUMBER(SMALL(#REF!,ROW()-2)),SMALL(#REF!,ROW()-2),"") ->  | AW48: 1 | BA48: 1 | BB48: =IF(ISNUMBER(AY48),VLOOKUP(AY48,AZ:BA,2,FALSE),"") ->  | BD48: =P48 -> 0 | BF48: 15 | BG48: =IF(ISNUMBER(BD48),VLOOKUP(BD48,BE:BF,2,FALSE),"") -> 0 | BI48: 26 | BJ48: 19 | BS48: =#REF! ->  | BU48: =#REF! ->  | BY48: 16 | CC48: 10 | CE48: 11 | CG48: 2
C49: =CONCATENATE(B47,"C") -> 12C | D49: WIKTORIA SZYMAŃSKA | F49: 16 | G49: 7 | H49: 9 | I49: 2 | J49: 6 | K49: 3 | L49: 12 | M49: 12 | R49: 24 | S49: 39 | X49: 7 | Y49: 2 | Z49: 3 | AA49: 12 | AB49: 124107102103112 | AC49: 126112105104105 | AD49: 46 | AG49: 13 | AH49: 10 | AJ49: 8 | AK49: 3 | AM49: 9 | AN49: 4 | AP49: 12 | AQ49: 12 | AT49: 8 | AV49: =IF(ISNUMBER(SMALL(#REF!,ROW()-2)),SMALL(#REF!,ROW()-2),"") ->  | AW49: 1 | BA49: 1 | BF49: 15 | BI49: 26 | BJ49: 19 | BY49: 16 | CC49: 7 | CE49: 3 | CG49: 2
C50: =CONCATENATE(B47,"D") -> 12D | D50: ANIELA MOCZULASKA | F50: 23 | G50: 1 | H50: 10 | I50: 1 | J50: 3 | K50: 2 | L50: 15 | M50: 14 | R50: 18 | S50: 27 | X50: 1 | Y50: 1 | Z50: 2 | AA50: 14 | AB50: 118101101102114 | AC50: 126113104104105 | AD50: 47 | AG50: 13 | AH50: 10 | AJ50: 8 | AK50: 3 | AM50: 9 | AN50: 4 | AP50: 12 | AQ50: 12 | AT50: 8 | AV50: =IF(ISNUMBER(SMALL(#REF!,ROW()-2)),SMALL(#REF!,ROW()-2),"") ->  | AW50: 1 | BA50: 1 | BF50: 15 | BI50: 26 | BJ50: 19 | BY50: 16 | CC50: 1 | CE50: 2 | CG50: 1
B51: 13 | C51: =CONCATENATE(B51,"A") -> 13A | D51: MIŁOSZ SZKODZIŃSKI | E51: Szkoła Podstawowa w Czarnej | F51: 17 | G51: 6 | H51: 10 | I51: 1 | J51: 0 | K51: 1 | L51: 2 | M51: 3 | N51: 15 | O51: =IF(ISBLANK(N51),"",IF(N51=0,$CC$2,CD51)) -> 3 | P51: =IF(ISNUMBER(O51),IF(ISNUMBER(O51),IF(ISNUMBER(O51),IF(ISNUMBER(O51),O51+G51+G52+G53+G54+I51+I52+I53+I54+K51+K52+K53+K54+M51+M52+M53+M54,""),""),""),"") -> 42 | Q51: =IF(ISNUMBER(P51),VLOOKUP(BV51,BX:BY,2,FALSE),"") -> 1 | R51: 11 | S51: 16 | X51: 6 | Y51: 1 | Z51: 1 | AA51: 3 | AB51: 111106101101103 | AC51: 127110103105109 | AD51: 48 | AG51: 13 | AH51: 10 | AJ51: 8 | AK51: 3 | AM51: 9 | AN51: 4 | AP51: 14 | AQ51: 13 | AT51: 8 | AV51: =IF(ISNUMBER(SMALL(#REF!,ROW()-2)),SMALL(#REF!,ROW()-2),"") ->  | AW51: 1 | BA51: 1 | BB51: =IF(ISNUMBER(AY51),VLOOKUP(AY51,AZ:BA,2,FALSE),"") ->  | BD51: =P51 -> 42 | BF51: 15 | BG51: =IF(ISNUMBER(BD51),VLOOKUP(BD51,BE:BF,2,FALSE),"") -> 1 | BI51: 27 | BJ51: 20 | BN51: =P51 -> 42 | BO51: =SUM(G51,G52,G53,G54) -> 15 | BP51: =SUM(I51,I52,I53,I54) -> 5 | BQ51: =SUM(K51,K52,K53,K54) -> 5 | BR51: =O51 -> 3 | BS51: =#REF! ->  | BT51: =SUM(M51,M52,M53,M54) -> 14 | BU51: =#REF! ->  | BV51: =IF(ISNUMBER(P51),CONCATENATE(BN51+100,BO51+100,BP51+100,BQ51+100,BT51+100,BR51+100)+0,"") -> 1.421151051e+17 | BW51: =IF(ISNUMBER(SMALL(BV:BV,ROW()-2)),SMALL(BV:BV,ROW()-2),"") ->  | BY51: 16 | CC51: 6 | CD51: =VLOOKUP(N51,AS:AT,2,FALSE) -> 3 | CE51: 1 | CG51: 1
C52: =CONCATENATE(B51,"B") -> 13B | D52: OLGA JENSZ | F52: 23 | G52: 1 | H52: 10 | I52: 1 | J52: 3 | K52: 2 | L52: 1 | M52: 2 | R52: 6 | S52: 1 | X52: 1 | Y52: 1 | Z52: 2 | AA52: 2 | AB52: 106101101102102 | AC52: 128106102103117 | AD52: 49 | AG52: 13 | AH52: 10 | AJ52: 8 | AK52: 3 | AM52: 9 | AN52: 4 | AP52: 15 | AQ52: 14 | AT52: 8 | AV52: =IF(ISNUMBER(SMALL(#REF!,ROW()-2)),SMALL(#REF!,ROW()-2),"") ->  | AW52: 1 | BA52: 1 | BF52: 15 | BI52: 28 | BJ52: 21 | BY52: 16 | CC52: 1 | CE52: 2 | CG52: 1
C53: =CONCATENATE(B51,"C") -> 13C | D53: KINGA SKOWRON | F53: 16 | G53: 7 | H53: 9 | I53: 2 | J53: 0 | K53: 1 | L53: 3 | M53: 4 | R53: 14 | S53: 23 | X53: 7 | Y53: 2 | Z53: 1 | AA53: 4 | AB53: 114107102101104 | AC53: 129104102109114 | AD53: 50 | AG53: 12 | AH53: 11 | AJ53: 8 | AK53: 3 | AM53: 12 | AN53: 5 | AP53: 15 | AQ53: 14 | AT53: 8 | AV53: =IF(ISNUMBER(SMALL(#REF!,ROW()-2)),SMALL(#REF!,ROW()-2),"") ->  | AW53: 1 | BA53: 1 | BF53: 15 | BI53: 29 | BJ53: 22 | BY53: 16 | CC53: 7 | CE53: 1 | CG53: 2
C54: =CONCATENATE(B51,"D") -> 13D | D54: MATEUSZ KUBICKI | F54: 23 | G54: 1 | H54: 10 | I54: 1 | J54: 0 | K54: 1 | L54: 4 | M54: 5 | R54: 8 | S54: 6 | X54: 1 | Y54: 1 | Z54: 1 | AA54: 5 | AB54: 108101101101105 | AC54: 129114106104105 | AD54: 51 | AG54: 12 | AH54: 11 | AJ54: 7 | AK54: 4 | AM54: 12 | AN54: 5 | AP54: 15 | AQ54: 14 | AT54: 8 | AV54: =IF(ISNUMBER(SMALL(#REF!,ROW()-2)),SMALL(#REF!,ROW()-2),"") ->  | AW54: 1 | BA54: 1 | BB54: =IF(ISNUMBER(AY54),VLOOKUP(AY54,AZ:BA,2,FALSE),"") ->  | BD54: =P54 -> 0 | BF54: 15 | BG54: =IF(ISNUMBER(BD54),VLOOKUP(BD54,BE:BF,2,FALSE),"") -> 0 | BI54: 29 | BJ54: 22 | BS54: =#REF! ->  | BU54: =#REF! ->  | BY54: 16 | CC54: 1 | CE54: 1 | CG54: 1
B55: 14 | C55: =CONCATENATE(B55,"A") -> 14A | D55: MARIOLA JUREK | E55: Szkoła Podstawowa w Stroniu | F55: 19 | G55: 4 | H55: 10 | I55: 1 | J55: 0 | K55: 1 | L55: 0 | M55: 1 | N55: 12 | O55: =IF(ISBLANK(N55),"",IF(N55=0,$CC$2,CD55)) -> 6 | P55: =IF(ISNUMBER(O55),IF(ISNUMBER(O55),IF(ISNUMBER(O55),IF(ISNUMBER(O55),O55+G55+G56+G57+G58+I55+I56+I57+I58+K55+K56+K57+K58+M55+M56+M57+M58,""),""),""),"") -> 44 | Q55: =IF(ISNUMBER(P55),VLOOKUP(BV55,BX:BY,2,FALSE),"") -> 2 | R55: 7 | S55: 5 | X55: 4 | Y55: 1 | Z55: 1 | AA55: 1 | AB55: 107104101101101 | AC55: 131113102103113 | AD55: 52 | AG55: 11 | AH55: 12 | AJ55: 7 | AK55: 4 | AM55: 13 | AN55: 6 | AP55: 15 | AQ55: 14 | AT55: 8 | AV55: =IF(ISNUMBER(SMALL(#REF!,ROW()-2)),SMALL(#REF!,ROW()-2),"") ->  | AW55: 1 | BF55: 15 | BI55: 31 | BJ55: 23 | BN55: =P55 -> 44 | BO55: =SUM(G55,G56,G57,G58) -> 14 | BP55: =SUM(I55,I56,I57,I58) -> 7 | BQ55: =SUM(K55,K56,K57,K58) -> 4 | BR55: =O55 -> 6 | BT55: =SUM(M55,M56,M57,M58) -> 13 | BV55: =IF(ISNUMBER(P55),CONCATENATE(BN55+100,BO55+100,BP55+100,BQ55+100,BT55+100,BR55+100)+0,"") -> 1.441141071e+17 | BW55: =IF(ISNUMBER(SMALL(BV:BV,ROW()-2)),SMALL(BV:BV,ROW()-2),"") ->  | BY55: 16 | CC55: 4 | CD55: =VLOOKUP(N55,AS:AT,2,FALSE) -> 6 | CE55: 1 | CG55: 1
C56: =CONCATENATE(B55,"B") -> 14B | D56: JAKUB KOSMYRA | F56: 19 | G56: 4 | H56: 10 | I56: 1 | J56: 0 | K56: 1 | L56: 3 | M56: 4 | R56: 10 | S56: 11 | X56: 4 | Y56: 1 | Z56: 1 | AA56: 4 | AB56: 110104101101104 | AC56: 132112103102115 | AD56: 53 | AG56: 11 | AH56: 12 | AJ56: 6 | AK56: 5 | AM56: 13 | AN56: 6 | AP56: 17 | AQ56: 15 | AT56: 8 | AV56: =IF(ISNUMBER(SMALL(#REF!,ROW()-2)),SMALL(#REF!,ROW()-2),"") ->  | AW56: 1 | BF56: 15 | BI56: 32 | BJ56: 24 | BY56: 16 | CC56: 4 | CE56: 1 | CG56: 1
C57: =CONCATENATE(B55,"C") -> 14C | D57: WIKTORIA KLIMOWSKA | F57: 19 | G57: 4 | H57: 8 | I57: 3 | J57: 0 | K57: 1 | L57: 5 | M57: 6 | R57: 14 | S57: 21 | X57: 4 | Y57: 3 | Z57: 1 | AA57: 6 | AB57: 114104103101106 | AC57: 133110103106114 | AD57: 54 | AG57: 11 | AH57: 12 | AJ57: 6 | AK57: 5 | AM57: 15 | AN57: 7 | AP57: 17 | AQ57: 15 | AT57: 8 | AV57: =IF(ISNUMBER(SMALL(#REF!,ROW()-2)),SMALL(#REF!,ROW()-2),"") ->  | AW57: 1 | BB57: =IF(ISNUMBER(AY57),VLOOKUP(AY57,AZ:BA,2,FALSE),"") ->  | BD57: =P57 -> 0 | BF57: 15 | BG57: =IF(ISNUMBER(BD57),VLOOKUP(BD57,BE:BF,2,FALSE),"") -> 0 | BI57: 33 | BJ57: 25 | BS57: =#REF! ->  | BU57: =#REF! ->  | BY57: 16 | CC57: 4 | CE57: 1 | CG57: 3
C58: =CONCATENATE(B55,"D") -> 14D | D58: RADOSŁAW ODROWĄŻ | F58: 22 | G58: 2 | H58: 9 | I58: 2 | J58: 0 | K58: 1 | L58: 1 | M58: 2 | R58: 7 | S58: 3 | X58: 2 | Y58: 2 | Z58: 1 | AA58: 2 | AB58: 107102102101102 | AC58: 134109103102120 | AD58: 55 | AG58: 10 | AH58: 13 | AJ58: 6 | AK58: 5 | AM58: 15 | AN58: 7 | AP58: 18 | AQ58: 16 | AT58: 8 | AV58: =IF(ISNUMBER(SMALL(#REF!,ROW()-2)),SMALL(#REF!,ROW()-2),"") ->  | AW58: 1 | BF58: 15 | BI58: 34 | BJ58: 26 | BY58: 16 | CC58: 2 | CE58: 1 | CG58: 2
B59: 15 | C59: =CONCATENATE(B59,"A") -> 15A | O59: =IF(ISBLANK(N59),"",IF(N59=0,$CC$2,CD59)) ->  | P59: =IF(ISNUMBER(O59),IF(ISNUMBER(O59),IF(ISNUMBER(O59),IF(ISNUMBER(O59),O59+G59+G60+G61+G62+I59+I60+I61+I62+K59+K60+K61+K62+M59+M60+M61+M62,""),""),""),"") ->  | Q59: =IF(ISNUMBER(P59),VLOOKUP(BV59,BX:BY,2,FALSE),"") ->  | AC59: 137107102110118 | AD59: 56 | AG59: 10 | AH59: 13 | AJ59: 6 | AK59: 5 | AM59: 18 | AN59: 8 | AP59: 21 | AQ59: 17 | AT59: 8 | AV59: =IF(ISNUMBER(SMALL(#REF!,ROW()-2)),SMALL(#REF!,ROW()-2),"") ->  | AW59: 1 | BF59: 15 | BI59: 37 | BJ59: 27 | BN59: =P59 ->  | BO59: =SUM(G59,G60,G61,G62) -> 0 | BP59: =SUM(I59,I60,I61,I62) -> 0 | BQ59: =SUM(K59,K60,K61,K62) -> 0 | BR59: =O59 ->  | BT59: =SUM(M59,M60,M61,M62) -> 0 | BV59: =IF(ISNUMBER(P59),CONCATENATE(BN59+100,BO59+100,BP59+100,BQ59+100,BT59+100,BR59+100)+0,"") ->  | BW59: =IF(ISNUMBER(SMALL(BV:BV,ROW()-2)),SMALL(BV:BV,ROW()-2),"") ->  | BY59: 16 | CD59: =VLOOKUP(N59,AS:AT,2,FALSE) -> 
C60: =CONCATENATE(B59,"B") -> 15B | AC60: 139110102111116 | AD60: 57 | AG60: 9 | AH60: 14 | AJ60: 5 | AK60: 6 | AM60: 24 | AN60: 9 | AP60: 23 | AQ60: 18 | AT60: 8 | AV60: =IF(ISNUMBER(SMALL(#REF!,ROW()-2)),SMALL(#REF!,ROW()-2),"") ->  | AW60: 1 | BB60: =IF(ISNUMBER(AY60),VLOOKUP(AY60,AZ:BA,2,FALSE),"") ->  | BD60: =P60 -> 0 | BF60: 15 | BG60: =IF(ISNUMBER(BD60),VLOOKUP(BD60,BE:BF,2,FALSE),"") -> 0 | BI60: 39 | BJ60: 28 | BS60: =#REF! ->  | BU60: =#REF! ->  | BY60: 16
C61: =CONCATENATE(B59,"C") -> 15C | AC61: 140114108103115 | AD61: 58 | AG61: 9 | AH61: 14 | AJ61: 3 | AK61: 7 | AM61: 36 | AN61: 10 | AP61: 34 | AQ61: 19 | AT61: 8 | AV61: =IF(ISNUMBER(SMALL(#REF!,ROW()-2)),SMALL(#REF!,ROW()-2),"") ->  | AW61: 1 | BF61: 15 | BI61: 40 | BJ61: 29 | BY61: 16
C62: =CONCATENATE(B59,"D") -> 15D | AC62: 143114105105119 | AD62: 59 | AG62: 9 | AH62: 14 | AJ62: 2 | AK62: 8 | AM62: 40 | AN62: 11 | AP62: 41 | AQ62: 20 | AT62: 8 | AV62: =IF(ISNUMBER(SMALL(#REF!,ROW()-2)),SMALL(#REF!,ROW()-2),"") ->  | AW62: 1 | BF62: 15 | BI62: 43 | BJ62: 30 | BY62: 16
B63: 16 | C63: =CONCATENATE(B63,"A") -> 16A | D63: ARTUR OKRÓJ | E63: Zespół Szkolno-Przedszkolny w Szopie | F63: 13 | G63: 10 | H63: 9 | I63: 2 | J63: 6 | K63: 3 | L63: 3 | M63: 4 | N63: 14 | O63: =IF(ISBLANK(N63),"",IF(N63=0,$CC$2,CD63)) -> 4 | P63: =IF(ISNUMBER(O63),IF(ISNUMBER(O63),IF(ISNUMBER(O63),IF(ISNUMBER(O63),O63+G63+G64+G65+G66+I63+I64+I65+I66+K63+K64+K65+K66+M63+M64+M65+M66,""),""),""),"") -> 64 | Q63: =IF(ISNUMBER(P63),VLOOKUP(BV63,BX:BY,2,FALSE),"") -> 6 | R63: 19 | S63: 30 | X63: 10 | Y63: 2 | Z63: 3 | AA63: 4 | AB63: 119110102103104 | AD63: 60 | AH63: 15 | AK63: 9 | AN63: 12 | AQ63: 21 | AT63: 8 | AV63: =IF(ISNUMBER(SMALL(#REF!,ROW()-2)),SMALL(#REF!,ROW()-2),"") ->  | AW63: 1 | BB63: =IF(ISNUMBER(AY63),VLOOKUP(AY63,AZ:BA,2,FALSE),"") ->  | BD63: =P63 -> 64 | BF63: 15 | BG63: =IF(ISNUMBER(BD63),VLOOKUP(BD63,BE:BF,2,FALSE),"") -> 6 | BJ63: 31 | BN63: =P63 -> 64 | BO63: =SUM(G63,G64,G65,G66) -> 28 | BP63: =SUM(I63,I64,I65,I66) -> 5 | BQ63: =SUM(K63,K64,K65,K66) -> 7 | BR63: =O63 -> 4 | BS63: =#REF! ->  | BT63: =SUM(M63,M64,M65,M66) -> 20 | BU63: =#REF! ->  | BV63: =IF(ISNUMBER(P63),CONCATENATE(BN63+100,BO63+100,BP63+100,BQ63+100,BT63+100,BR63+100)+0,"") -> 1.641281051e+17 | BW63: =IF(ISNUMBER(SMALL(BV:BV,ROW()-2)),SMALL(BV:BV,ROW()-2),"") ->  | BY63: 16 | CC63: 10 | CD63: =VLOOKUP(N63,AS:AT,2,FALSE) -> 4 | CE63: 3 | CG63: 2
C64: =CONCATENATE(B63,"B") -> 16B | D64: ANETA BOBKOWSKA | F64: 20 | G64: 3 | H64: 10 | I64: 1 | J64: 3 | K64: 2 | L64: 2 | M64: 3 | R64: 9 | S64: 9 | X64: 3 | Y64: 1 | Z64: 2 | AA64: 3 | AB64: 109103101102103 | AD64: 60 | AH64: 15 | AK64: 9 | AN64: 12 | AQ64: 21 | AT64: 8 | AV64: =IF(ISNUMBER(SMALL(#REF!,ROW()-2)),SMALL(#REF!,ROW()-2),"") ->  | AW64: 1 | BF64: 15 | BJ64: 31 | BY64: 16 | CC64: 3 | CE64: 2 | CG64: 1
C65: =CONCATENATE(B63,"C") -> 16C | D65: IZABELA KLAMROWSKA | F65: 17 | G65: 6 | H65: 10 | I65: 1 | J65: 0 | K65: 1 | L65: 1 | M65: 2 | R65: 10 | S65: 13 | X65: 6 | Y65: 1 | Z65: 1 | AA65: 2 | AB65: 110106101101102 | AD65: 60 | AH65: 15 | AK65: 9 | AN65: 12 | AQ65: 21 | AT65: 8 | AV65: =IF(ISNUMBER(SMALL(#REF!,ROW()-2)),SMALL(#REF!,ROW()-2),"") ->  | AW65: 1 | BF65: 15 | BJ65: 31 | BY65: 16 | CC65: 6 | CE65: 1 | CG65: 1
C66: =CONCATENATE(B63,"D") -> 16D | D66: KACPER CHOSZCZ | F66: 14 | G66: 9 | H66: 10 | I66: 1 | J66: 0 | K66: 1 | L66: 11 | M66: 11 | R66: 22 | S66: 34 | X66: 9 | Y66: 1 | Z66: 1 | AA66: 11 | AB66: 122109101101111 | AD66: 60 | AH66: 15 | AK66: 9 | AN66: 12 | AQ66: 21 | AT66: 8 | AV66: =IF(ISNUMBER(SMALL(#REF!,ROW()-2)),SMALL(#REF!,ROW()-2),"") ->  | AW66: 1 | BB66: =IF(ISNUMBER(AY66),VLOOKUP(AY66,AZ:BA,2,FALSE),"") ->  | BD66: =P66 -> 0 | BF66: 15 | BG66: =IF(ISNUMBER(BD66),VLOOKUP(BD66,BE:BF,2,FALSE),"") -> 0 | BJ66: 31 | BS66: =#REF! ->  | BU66: =#REF! ->  | BY66: 16 | CC66: 9 | CE66: 1 | CG66: 1
B67: 17 | C67: =CONCATENATE(B67,"A") -> 17A | D67: PAWEŁ SOLAK | E67: Szkoła Podstawowa w Korczowie | F67: 18 | G67: =IF(ISBLANK(F67),"",IF(F67=0,$CB$2,CC67)) -> 5 | H67: 10 | I67: =IF(ISBLANK(H67),"",IF(H67=0,$CF$2,CG67)) -> 1 | J67: 0 | K67: =IF(ISNUMBER(J67),VLOOKUP(J67,AM:AN,2,FALSE),"") -> 1 | L67: 2 | M67: =IF(ISNUMBER(L67),VLOOKUP(L67,AP:AQ,2,FALSE),"") -> 3 | N67: 15 | O67: =IF(ISBLANK(N67),"",IF(N67=0,$CC$2,CD67)) -> 3 | P67: =IF(ISNUMBER(O67),IF(ISNUMBER(O67),IF(ISNUMBER(O67),IF(ISNUMBER(O67),O67+G67+G68+G69+G70+I67+I68+I69+I70+K67+K68+K69+K70+M67+M68+M69+M70,""),""),""),"") -> 45 | Q67: =IF(ISNUMBER(P67),VLOOKUP(BV67,BX:BY,2,FALSE),"") -> 3 | R67: 10 | S67: =IF(ISNUMBER(R67),VLOOKUP(AB67,AC:AD,2,FALSE),"") -> 12 | X67: 5 | Y67: 1 | Z67: =K67 -> 1 | AA67: =M67 -> 3 | AB67: 110105101101103 | AC67: =IF(ISNUMBER(SMALL(AB:AB,ROW()-2)),SMALL(AB:AB,ROW()-2),"") ->  | AD67: 60 | AG67: =IF(ISNUMBER(LARGE(F:F,ROW()-2)),LARGE(F:F,ROW()-2),"") ->  | AH67: 15 | AJ67: =IF(ISNUMBER(LARGE(H:H,ROW()-2)),LARGE(H:H,ROW()-2),"") ->  | AK67: 9 | AM67: =IF(ISNUMBER(SMALL(J:J,ROW()-2)),SMALL(J:J,ROW()-2),"") ->  | AN67: 12 | AP67: =IF(ISNUMBER(SMALL(L:L,ROW()-2)),SMALL(L:L,ROW()-2),"") ->  | AQ67: 21 | AS67: =IF(ISNUMBER(LARGE(N:N,ROW()-2)),LARGE(N:N,ROW()-2),"") ->  | AT67: 8 | AV67: =IF(ISNUMBER(SMALL(#REF!,ROW()-2)),SMALL(#REF!,ROW()-2),"") ->  | AW67: 1 | AZ67: =IF(ISNUMBER(LARGE(AY:AY,ROW()-2)),LARGE(AY:AY,ROW()-2),"") ->  | BE67: =IF(ISNUMBER(SMALL(P:P,ROW()-2)),SMALL(P:P,ROW()-2),"") ->  | BF67: 15 | BI67: =IF(ISNUMBER(SMALL(R:R,ROW()-2)),SMALL(R:R,ROW()-2),"") ->  | BJ67: 31 | BN67: =P67 -> 45 | BO67: =SUM(G67,G68,G69,G70) -> 16 | BP67: =SUM(I67,I68,I69,I70) -> 6 | BQ67: =SUM(K67,K68,K69,K70) -> 5 | BR67: =O67 -> 3 | BT67: =SUM(M67,M68,M69,M70) -> 15 | BV67: =IF(ISNUMBER(P67),CONCATENATE(BN67+100,BO67+100,BP67+100,BQ67+100,BT67+100,BR67+100)+0,"") -> 1.451161061e+17 | BW67: =IF(ISNUMBER(SMALL(BV:BV,ROW()-2)),SMALL(BV:BV,ROW()-2),"") ->  | BX67: =IF(ISNUMBER(SMALL(BV:BV,ROW()-2)),SMALL(BV:BV,ROW()-2),"") ->  | BY67: 16 | CC67: =VLOOKUP(F67,AG:AH,2,FALSE) -> 5 | CD67: =VLOOKUP(N67,AS:AT,2,FALSE) -> 3 | CE67: =IF(ISNUMBER(J67),VLOOKUP(J67,AM:AN,2,FALSE),"") -> 1 | CG67: =VLOOKUP(H67,AJ:AK,2,FALSE) -> 1
B68: =IF(MOD(ROW(),4)=3,((ROW()+1)/4),"") ->  | C68: =CONCATENATE(B67,"B") -> 17B | D68: NATALIE GRABIAS | F68: 19 | G68: 4 | H68: 8 | I68: 3 | J68: 0 | K68: 1 | L68: 2 | M68: 3 | R68: =IF(ISNUMBER(G68),IF(ISNUMBER(I68),IF(ISNUMBER(K68),IF(ISNUMBER(M68),SUM(G68,I68,K68,M68),""),""),""),"") -> 11 | S68: 14 | X68: 4 | Y68: =I68 -> 3 | Z68: 1 | AA68: 3 | AB68: =IF(ISNUMBER(R68),CONCATENATE(R68+100,X68+100,Y68+100,Z68+100,AA68+100)+0,"") -> 111104103101103 | AD68: 60 | AH68: =IF(AG67<>AG68,AH67+1,AH67) -> 15 | AK68: =IF(AJ67<>AJ68,AK67+1,AK67) -> 9 | AN68: 12 | AQ68: 21 | AT68: 8 | AV68: =IF(ISNUMBER(SMALL(#REF!,ROW()-2)),SMALL(#REF!,ROW()-2),"") ->  | AW68: 1 | BF68: =IF(BE67<>BE68,BF67+1,BF67) -> 15 | BJ68: =IF(BI67<>BI68,BJ67+1,BJ67) -> 31 | BY68: =IF(BX67<>BX68,BY67+1,BY67) -> 16 | CC68: 4 | CE68: 1 | CG68: 3
C69: =CONCATENATE(B67,"C") -> 17C | D69: ADRIAN SŁURZYŃSKI | F69: 18 | G69: 5 | H69: 10 | I69: 1 | J69: 3 | K69: 2 | L69: 5 | M69: 6 | R69: 14 | S69: 22 | X69: =G69 -> 5 | Y69: 1 | Z69: 2 | AA69: 6 | AB69: 114105101102106 | AD69: =IF(AC68<>AC69,AD68+1,AD68) -> 60 | AH69: 15 | AK69: 9 | AN69: =IF(AM68<>AM69,AN68+1,AN68) -> 12 | AQ69: =IF(AP68<>AP69,AQ68+1,AQ68) -> 21 | AT69: =IF(AS68<>AS69,AT68+1,AT68) -> 8 | AV69: =IF(ISNUMBER(SMALL(#REF!,ROW()-2)),SMALL(#REF!,ROW()-2),"") ->  | AW69: =IF(AV68<>AV69,AW68+1,AW68) -> 1 | BB69: =IF(ISNUMBER(AY69),VLOOKUP(AY69,AZ:BA,2,FALSE),"") ->  | BD69: =P69 -> 0 | BF69: 15 | BG69: =IF(ISNUMBER(BD69),VLOOKUP(BD69,BE:BF,2,FALSE),"") -> 0 | BJ69: 31 | BS69: =#REF! ->  | BU69: =#REF! ->  | BY69: 16 | CC69: 5 | CE69: 2 | CG69: 1
C70: =CONCATENATE(B67,"D") -> 17D | D70: KAROLINA WOŹNICA | F70: 22 | G70: 2 | H70: 10 | I70: 1 | J70: 0 | K70: 1 | L70: 2 | M70: 3 | R70: 7 | S70: 2 | X70: 2 | Y70: 1 | Z70: 1 | AA70: 3 | AB70: 107102101101103 | AD70: 60 | AH70: 15 | AK70: 9 | AN70: 12 | AQ70: 21 | AT70: 8 | AV70: =IF(ISNUMBER(SMALL(#REF!,ROW()-2)),SMALL(#REF!,ROW()-2),"") ->  | AW70: 1 | BF70: 15 | BJ70: 31 | BY70: 16 | CC70: 2 | CE70: 1 | CG70: 1
B71: 18 | C71: =CONCATENATE(B71,"A") -> 18A | O71: =IF(ISBLANK(N71),"",IF(N71=0,$CC$2,CD71)) ->  | P71: =IF(ISNUMBER(O71),IF(ISNUMBER(O71),IF(ISNUMBER(O71),IF(ISNUMBER(O71),O71+G71+G72+G73+G74+I71+I72+I73+I74+K71+K72+K73+K74+M71+M72+M73+M74,""),""),""),"") ->  | Q71: =IF(ISNUMBER(P71),VLOOKUP(BV71,BX:BY,2,FALSE),"") ->  | AD71: 60 | AH71: 15 | AK71: 9 | AN71: 12 | AQ71: 21 | AT71: 8 | AV71: =IF(ISNUMBER(SMALL(#REF!,ROW()-2)),SMALL(#REF!,ROW()-2),"") ->  | AW71: 1 | BF71: 15 | BJ71: 31 | BN71: =P71 ->  | BO71: =SUM(G71,G72,G73,G74) -> 0 | BP71: =SUM(I71,I72,I73,I74) -> 0 | BQ71: =SUM(K71,K72,K73,K74) -> 0 | BR71: =O71 ->  | BT71: =SUM(M71,M72,M73,M74) -> 0 | BV71: =IF(ISNUMBER(P71),CONCATENATE(BN71+100,BO71+100,BP71+100,BQ71+100,BT71+100,BR71+100)+0,"") ->  | BW71: =IF(ISNUMBER(SMALL(BV:BV,ROW()-2)),SMALL(BV:BV,ROW()-2),"") ->  | BY71: 16 | CD71: =VLOOKUP(N71,AS:AT,2,FALSE) -> 
C72: =CONCATENATE(B71,"B") -> 18B | AD72: 60 | AH72: 15 | AK72: 9 | AN72: 12 | AQ72: 21 | AT72: 8 | AV72: =IF(ISNUMBER(SMALL(#REF!,ROW()-2)),SMALL(#REF!,ROW()-2),"") ->  | AW72: 1 | BB72: =IF(ISNUMBER(AY72),VLOOKUP(AY72,AZ:BA,2,FALSE),"") ->  | BD72: =P72 -> 0 | BF72: 15 | BG72: =IF(ISNUMBER(BD72),VLOOKUP(BD72,BE:BF,2,FALSE),"") -> 0 | BJ72: 31 | BS72: =#REF! ->  | BU72: =#REF! ->  | BY72: 16
C73: =CONCATENATE(B71,"C") -> 18C | AD73: 60 | AH73: 15 | AK73: 9 | AN73: 12 | AQ73: 21 | AT73: 8 | AV73: =IF(ISNUMBER(SMALL(#REF!,ROW()-2)),SMALL(#REF!,ROW()-2),"") ->  | AW73: 1 | BF73: 15 | BJ73: 31 | BY73: 16
C74: =CONCATENATE(B71,"D") -> 18D | AD74: 60 | AH74: 15 | AK74: 9 | AN74: 12 | AQ74: 21 | AT74: 8 | AV74: =IF(ISNUMBER(SMALL(#REF!,ROW()-2)),SMALL(#REF!,ROW()-2),"") ->  | AW74: 1 | BF74: 15 | BJ74: 31 | BY74: 16
B75: 19 | C75: =CONCATENATE(B75,"A") -> 19A | O75: =IF(ISBLANK(N75),"",IF(N75=0,$CC$2,CD75)) ->  | P75: =IF(ISNUMBER(O75),IF(ISNUMBER(O75),IF(ISNUMBER(O75),IF(ISNUMBER(O75),O75+G75+G76+G77+G78+I75+I76+I77+I78+K75+K76+K77+K78+M75+M76+M77+M78,""),""),""),"") ->  | Q75: =IF(ISNUMBER(P75),VLOOKUP(BV75,BX:BY,2,FALSE),"") ->  | AD75: 60 | AH75: 15 | AK75: 9 | AN75: 12 | AQ75: 21 | AT75: 8 | AV75: =IF(ISNUMBER(SMALL(#REF!,ROW()-2)),SMALL(#REF!,ROW()-2),"") ->  | AW75: 1 | BB75: =IF(ISNUMBER(AY75),VLOOKUP(AY75,AZ:BA,2,FALSE),"") ->  | BD75: =P75 ->  | BF75: 15 | BG75: =IF(ISNUMBER(BD75),VLOOKUP(BD75,BE:BF,2,FALSE),"") ->  | BJ75: 31 | BN75: =P75 ->  | BO75: =SUM(G75,G76,G77,G78) -> 0 | BP75: =SUM(I75,I76,I77,I78) -> 0 | BQ75: =SUM(K75,K76,K77,K78) -> 0 | BR75: =O75 ->  | BS75: =#REF! ->  | BT75: =SUM(M75,M76,M77,M78) -> 0 | BU75: =#REF! ->  | BV75: =IF(ISNUMBER(P75),CONCATENATE(BN75+100,BO75+100,BP75+100,BQ75+100,BT75+100,BR75+100)+0,"") ->  | BW75: =IF(ISNUMBER(SMALL(BV:BV,ROW()-2)),SMALL(BV:BV,ROW()-2),"") ->  | BY75: 16 | CD75: =VLOOKUP(N75,AS:AT,2,FALSE) -> 
C76: =CONCATENATE(B75,"B") -> 19B | AD76: 60 | AH76: 15 | AK76: 9 | AN76: 12 | AQ76: 21 | AT76: 8 | AV76: =IF(ISNUMBER(SMALL(#REF!,ROW()-2)),SMALL(#REF!,ROW()-2),"") ->  | AW76: 1 | BF76: 15 | BJ76: 31 | BY76: 16
C77: =CONCATENATE(B75,"C") -> 19C | AD77: 60 | AH77: 15 | AK77: 9 | AN77: 12 | AQ77: 21 | AT77: 8 | AV77: =IF(ISNUMBER(SMALL(#REF!,ROW()-2)),SMALL(#REF!,ROW()-2),"") ->  | AW77: 1 | BF77: 15 | BJ77: 31 | BY77: 16
C78: =CONCATENATE(B75,"D") -> 19D | AD78: 60 | AH78: 15 | AK78: 9 | AN78: 12 | AQ78: 21 | AT78: 8 | AV78: =IF(ISNUMBER(SMALL(#REF!,ROW()-2)),SMALL(#REF!,ROW()-2),"") ->  | AW78: 1 | BB78: =IF(ISNUMBER(AY78),VLOOKUP(AY78,AZ:BA,2,FALSE),"") ->  | BD78: =P78 -> 0 | BF78: 15 | BG78: =IF(ISNUMBER(BD78),VLOOKUP(BD78,BE:BF,2,FALSE),"") -> 0 | BJ78: 31 | BS78: =#REF! ->  | BU78: =#REF! ->  | BY78: 16
B79: 20 | C79: =CONCATENATE(B79,"A") -> 20A | O79: =IF(ISBLANK(N79),"",IF(N79=0,$CC$2,CD79)) ->  | P79: =IF(ISNUMBER(O79),IF(ISNUMBER(O79),IF(ISNUMBER(O79),IF(ISNUMBER(O79),O79+G79+G80+G81+G82+I79+I80+I81+I82+K79+K80+K81+K82+M79+M80+M81+M82,""),""),""),"") ->  | Q79: =IF(ISNUMBER(P79),VLOOKUP(BV79,BX:BY,2,FALSE),"") ->  | AD79: 60 | AH79: 15 | AK79: 9 | AN79: 12 | AQ79: 21 | AT79: 8 | AV79: =IF(ISNUMBER(SMALL(#REF!,ROW()-2)),SMALL(#REF!,ROW()-2),"") ->  | AW79: 1 | BF79: 15 | BJ79: 31 | BN79: =P79 ->  | BO79: =SUM(G79,G80,G81,G82) -> 0 | BP79: =SUM(I79,I80,I81,I82) -> 0 | BQ79: =SUM(K79,K80,K81,K82) -> 0 | BR79: =O79 ->  | BT79: =SUM(M79,M80,M81,M82) -> 0 | BV79: =IF(ISNUMBER(P79),CONCATENATE(BN79+100,BO79+100,BP79+100,BQ79+100,BT79+100,BR79+100)+0,"") ->  | BW79: =IF(ISNUMBER(SMALL(BV:BV,ROW()-2)),SMALL(BV:BV,ROW()-2),"") ->  | BY79: 16 | CD79: =VLOOKUP(N79,AS:AT,2,FALSE) -> 
C80: =CONCATENATE(B79,"B") -> 20B | AD80: 60 | AH80: 15 | AK80: 9 | AN80: 12 | AQ80: 21 | AT80: 8 | AV80: =IF(ISNUMBER(SMALL(#REF!,ROW()-2)),SMALL(#REF!,ROW()-2),"") ->  | AW80: 1 | BF80: 15 | BJ80: 31 | BY80: 16
C81: =CONCATENATE(B79,"C") -> 20C | AD81: 60 | AH81: 15 | AK81: 9 | AN81: 12 | AQ81: 21 | AT81: 8 | AV81: =IF(ISNUMBER(SMALL(#REF!,ROW()-2)),SMALL(#REF!,ROW()-2),"") ->  | AW81: 1 | BB81: =IF(ISNUMBER(AY81),VLOOKUP(AY81,AZ:BA,2,FALSE),"") ->  | BD81: =P81 -> 0 | BF81: 15 | BG81: =IF(ISNUMBER(BD81),VLOOKUP(BD81,BE:BF,2,FALSE),"") -> 0 | BJ81: 31 | BS81: =#REF! ->  | BU81: =#REF! ->  | BY81: 16
C82: =CONCATENATE(B79,"D") -> 20D | AD82: 60 | AH82: 15 | AK82: 9 | AN82: 12 | AQ82: 21 | AT82: 8 | AV82: =IF(ISNUMBER(SMALL(#REF!,ROW()-2)),SMALL(#REF!,ROW()-2),"") ->  | AW82: 1 | BF82: 15 | BJ82: 31 | BY82: 16
B83: 21 | C83: =CONCATENATE(B83,"A") -> 21A | O83: =IF(ISBLANK(N83),"",IF(N83=0,$CC$2,CD83)) ->  | P83: =IF(ISNUMBER(O83),IF(ISNUMBER(O83),IF(ISNUMBER(O83),IF(ISNUMBER(O83),O83+G83+G84+G85+G86+I83+I84+I85+I86+K83+K84+K85+K86+M83+M84+M85+M86,""),""),""),"") ->  | Q83: =IF(ISNUMBER(P83),VLOOKUP(BV83,BX:BY,2,FALSE),"") ->  | AD83: 60 | AH83: 15 | AK83: 9 | AN83: 12 | AQ83: 21 | AT83: 8 | AV83: =IF(ISNUMBER(SMALL(#REF!,ROW()-2)),SMALL(#REF!,ROW()-2),"") ->  | AW83: 1 | BF83: 15 | BJ83: 31 | BN83: =P83 ->  | BO83: =SUM(G83,G84,G85,G86) -> 0 | BP83: =SUM(I83,I84,I85,I86) -> 0 | BQ83: =SUM(K83,K84,K85,K86) -> 0 | BR83: =O83 ->  | BT83: =SUM(M83,M84,M85,M86) -> 0 | BV83: =IF(ISNUMBER(P83),CONCATENATE(BN83+100,BO83+100,BP83+100,BQ83+100,BT83+100,BR83+100)+0,"") ->  | BW83: =IF(ISNUMBER(SMALL(BV:BV,ROW()-2)),SMALL(BV:BV,ROW()-2),"") ->  | BY83: 16 | CD83: =VLOOKUP(N83,AS:AT,2,FALSE) -> 
C84: =CONCATENATE(B83,"B") -> 21B | AD84: 60 | AH84: 15 | AK84: 9 | AN84: 12 | AQ84: 21 | AT84: 8 | AV84: =IF(ISNUMBER(SMALL(#REF!,ROW()-2)),SMALL(#REF!,ROW()-2),"") ->  | AW84: 1 | BB84: =IF(ISNUMBER(AY84),VLOOKUP(AY84,AZ:BA,2,FALSE),"") ->  | BD84: =P84 -> 0 | BF84: 15 | BG84: =IF(ISNUMBER(BD84),VLOOKUP(BD84,BE:BF,2,FALSE),"") -> 0 | BJ84: 31 | BS84: =#REF! ->  | BU84: =#REF! ->  | BY84: 16
C85: =CONCATENATE(B83,"C") -> 21C | AD85: 60 | AH85: 15 | AK85: 9 | AN85: 12 | AQ85: 21 | AT85: 8 | AV85: =IF(ISNUMBER(SMALL(#REF!,ROW()-2)),SMALL(#REF!,ROW()-2),"") ->  | AW85: 1 | BF85: 15 | BJ85: 31 | BY85: 16
C86: =CONCATENATE(B83,"D") -> 21D | AD86: 60 | AH86: 15 | AK86: 9 | AN86: 12 | AQ86: 21 | AT86: 8 | AV86: =IF(ISNUMBER(SMALL(#REF!,ROW()-2)),SMALL(#REF!,ROW()-2),"") ->  | AW86: 1 | BF86: 15 | BJ86: 31 | BY86: 16
B87: 22 | C87: =CONCATENATE(B87,"A") -> 22A | O87: =IF(ISBLANK(N87),"",IF(N87=0,$CC$2,CD87)) ->  | P87: =IF(ISNUMBER(O87),IF(ISNUMBER(O87),IF(ISNUMBER(O87),IF(ISNUMBER(O87),O87+G87+G88+G89+G90+I87+I88+I89+I90+K87+K88+K89+K90+M87+M88+M89+M90,""),""),""),"") ->  | Q87: =IF(ISNUMBER(P87),VLOOKUP(BV87,BX:BY,2,FALSE),"") ->  | AD87: 60 | AH87: 15 | AK87: 9 | AN87: 12 | AQ87: 21 | AT87: 8 | AV87: =IF(ISNUMBER(SMALL(#REF!,ROW()-2)),SMALL(#REF!,ROW()-2),"") ->  | AW87: 1 | BB87: =IF(ISNUMBER(AY87),VLOOKUP(AY87,AZ:BA,2,FALSE),"") ->  | BD87: =P87 ->  | BF87: 15 | BG87: =IF(ISNUMBER(BD87),VLOOKUP(BD87,BE:BF,2,FALSE),"") ->  | BJ87: 31 | BN87: =P87 ->  | BO87: =SUM(G87,G88,G89,G90) -> 0 | BP87: =SUM(I87,I88,I89,I90) -> 0 | BQ87: =SUM(K87,K88,K89,K90) -> 0 | BR87: =O87 ->  | BS87: =#REF! ->  | BT87: =SUM(M87,M88,M89,M90) -> 0 | BU87: =#REF! ->  | BV87: =IF(ISNUMBER(P87),CONCATENATE(BN87+100,BO87+100,BP87+100,BQ87+100,BT87+100,BR87+100)+0,"") ->  | BW87: =IF(ISNUMBER(SMALL(BV:BV,ROW()-2)),SMALL(BV:BV,ROW()-2),"") ->  | BY87: 16 | CD87: =VLOOKUP(N87,AS:AT,2,FALSE) -> 
C88: =CONCATENATE(B87,"B") -> 22B | AD88: 60 | AH88: 15 | AK88: 9 | AN88: 12 | AQ88: 21 | AT88: 8 | AV88: =IF(ISNUMBER(SMALL(#REF!,ROW()-2)),SMALL(#REF!,ROW()-2),"") ->  | AW88: 1 | BF88: 15 | BJ88: 31 | BY88: 16
C89: =CONCATENATE(B87,"C") -> 22C | AD89: 60 | AH89: 15 | AK89: 9 | AN89: 12 | AQ89: 21 | AT89: 8 | AV89: =IF(ISNUMBER(SMALL(#REF!,ROW()-2)),SMALL(#REF!,ROW()-2),"") ->  | AW89: 1 | BF89: 15 | BJ89: 31 | BY89: 16
C90: =CONCATENATE(B87,"D") -> 22D | AD90: 60 | AH90: 15 | AK90: 9 | AN90: 12 | AQ90: 21 | AT90: 8 | AV90: =IF(ISNUMBER(SMALL(#REF!,ROW()-2)),SMALL(#REF!,ROW()-2),"") ->  | AW90: 1 | BB90: =IF(ISNUMBER(AY90),VLOOKUP(AY90,AZ:BA,2,FALSE),"") ->  | BD90: =P90 -> 0 | BF90: 15 | BG90: =IF(ISNUMBER(BD90),VLOOKUP(BD90,BE:BF,2,FALSE),"") -> 0 | BJ90: 31 | BS90: =#REF! ->  | BU90: =#REF! ->  | BY90: 16
B91: 23 | C91: =CONCATENATE(B91,"A") -> 23A | O91: =IF(ISBLANK(N91),"",IF(N91=0,$CC$2,CD91)) ->  | P91: =IF(ISNUMBER(O91),IF(ISNUMBER(O91),IF(ISNUMBER(O91),IF(ISNUMBER(O91),O91+G91+G92+G93+G94+I91+I92+I93+I94+K91+K92+K93+K94+M91+M92+M93+M94,""),""),""),"") ->  | Q91: =IF(ISNUMBER(P91),VLOOKUP(BV91,BX:BY,2,FALSE),"") ->  | AD91: 60 | AH91: 15 | AK91: 9 | AN91: 12 | AQ91: 21 | AT91: 8 | AV91: =IF(ISNUMBER(SMALL(#REF!,ROW()-2)),SMALL(#REF!,ROW()-2),"") ->  | AW91: 1 | BF91: 15 | BJ91: 31 | BN91: =P91 ->  | BO91: =SUM(G91,G92,G93,G94) -> 0 | BP91: =SUM(I91,I92,I93,I94) -> 0 | BQ91: =SUM(K91,K92,K93,K94) -> 0 | BR91: =O91 ->  | BT91: =SUM(M91,M92,M93,M94) -> 0 | BV91: =IF(ISNUMBER(P91),CONCATENATE(BN91+100,BO91+100,BP91+100,BQ91+100,BT91+100,BR91+100)+0,"") ->  | BW91: =IF(ISNUMBER(SMALL(BV:BV,ROW()-2)),SMALL(BV:BV,ROW()-2),"") ->  | BY91: 16 | CD91: =VLOOKUP(N91,AS:AT,2,FALSE) -> 
C92: =CONCATENATE(B91,"B") -> 23B | AD92: 60 | AH92: 15 | AK92: 9 | AN92: 12 | AQ92: 21 | AT92: 8 | AV92: =IF(ISNUMBER(SMALL(#REF!,ROW()-2)),SMALL(#REF!,ROW()-2),"") ->  | AW92: 1 | BF92: 15 | BJ92: 31 | BY92: 16
C93: =CONCATENATE(B91,"C") -> 23C | AD93: 60 | AH93: 15 | AK93: 9 | AN93: 12 | AQ93: 21 | AT93: 8 | AV93: =IF(ISNUMBER(SMALL(#REF!,ROW()-2)),SMALL(#REF!,ROW()-2),"") ->  | AW93: 1 | BB93: =IF(ISNUMBER(AY93),VLOOKUP(AY93,AZ:BA,2,FALSE),"") ->  | BD93: =P93 -> 0 | BF93: 15 | BG93: =IF(ISNUMBER(BD93),VLOOKUP(BD93,BE:BF,2,FALSE),"") -> 0 | BJ93: 31 | BS93: =#REF! ->  | BU93: =#REF! ->  | BY93: 16
C94: =CONCATENATE(B91,"D") -> 23D | AD94: 60 | AH94: 15 | AK94: 9 | AN94: 12 | AQ94: 21 | AT94: 8 | AV94: =IF(ISNUMBER(SMALL(#REF!,ROW()-2)),SMALL(#REF!,ROW()-2),"") ->  | AW94: 1 | BF94: 15 | BJ94: 31 | BY94: 16
B95: 24 | C95: =CONCATENATE(B95,"A") -> 24A | O95: =IF(ISBLANK(N95),"",IF(N95=0,$CC$2,CD95)) ->  | P95: =IF(ISNUMBER(O95),IF(ISNUMBER(O95),IF(ISNUMBER(O95),IF(ISNUMBER(O95),O95+G95+G96+G97+G98+I95+I96+I97+I98+K95+K96+K97+K98+M95+M96+M97+M98,""),""),""),"") ->  | Q95: =IF(ISNUMBER(P95),VLOOKUP(BV95,BX:BY,2,FALSE),"") ->  | AD95: 60 | AH95: 15 | AK95: 9 | AN95: 12 | AQ95: 21 | AT95: 8 | AV95: =IF(ISNUMBER(SMALL(#REF!,ROW()-2)),SMALL(#REF!,ROW()-2),"") ->  | AW95: 1 | BF95: 15 | BJ95: 31 | BN95: =P95 ->  | BO95: =SUM(G95,G96,G97,G98) -> 0 | BP95: =SUM(I95,I96,I97,I98) -> 0 | BQ95: =SUM(K95,K96,K97,K98) -> 0 | BR95: =O95 ->  | BT95: =SUM(M95,M96,M97,M98) -> 0 | BV95: =IF(ISNUMBER(P95),CONCATENATE(BN95+100,BO95+100,BP95+100,BQ95+100,BT95+100,BR95+100)+0,"") ->  | BW95: =IF(ISNUMBER(SMALL(BV:BV,ROW()-2)),SMALL(BV:BV,ROW()-2),"") ->  | BY95: 16 | CD95: =VLOOKUP(N95,AS:AT,2,FALSE) -> 
C96: =CONCATENATE(B95,"B") -> 24B | AD96: 60 | AH96: 15 | AK96: 9 | AN96: 12 | AQ96: 21 | AT96: 8 | AV96: =IF(ISNUMBER(SMALL(#REF!,ROW()-2)),SMALL(#REF!,ROW()-2),"") ->  | AW96: 1 | BB96: =IF(ISNUMBER(AY96),VLOOKUP(AY96,AZ:BA,2,FALSE),"") ->  | BD96: =P96 -> 0 | BF96: 15 | BG96: =IF(ISNUMBER(BD96),VLOOKUP(BD96,BE:BF,2,FALSE),"") -> 0 | BJ96: 31 | BS96: =#REF! ->  | BU96: =#REF! ->  | BY96: 16
C97: =CONCATENATE(B95,"C") -> 24C | AD97: 60 | AH97: 15 | AK97: 9 | AN97: 12 | AQ97: 21 | AT97: 8 | AV97: =IF(ISNUMBER(SMALL(#REF!,ROW()-2)),SMALL(#REF!,ROW()-2),"") ->  | AW97: 1 | BF97: 15 | BJ97: 31 | BY97: 16
C98: =CONCATENATE(B95,"D") -> 24D | AD98: 60 | AH98: 15 | AK98: 9 | AN98: 12 | AQ98: 21 | AT98: 8 | AV98: =IF(ISNUMBER(SMALL(#REF!,ROW()-2)),SMALL(#REF!,ROW()-2),"") ->  | AW98: 1 | BF98: 15 | BJ98: 31 | BY98: 16
B99: 25 | C99: =CONCATENATE(B99,"A") -> 25A | G99: =IF(ISBLANK(F99),"",IF(F99=0,$CB$2,CC99)) ->  | I99: =IF(ISBLANK(H99),"",IF(H99=0,$CF$2,CG99)) ->  | K99: =IF(ISNUMBER(J99),VLOOKUP(J99,AM:AN,2,FALSE),"") ->  | M99: =IF(ISNUMBER(L99),VLOOKUP(L99,AP:AQ,2,FALSE),"") ->  | O99: =IF(ISBLANK(N99),"",IF(N99=0,$CC$2,CD99)) ->  | P99: =IF(ISNUMBER(O99),IF(ISNUMBER(O99),IF(ISNUMBER(O99),IF(ISNUMBER(O99),O99+G99+G100+G101+G102+I99+I100+I101+I102+K99+K100+K101+K102+M99+M100+M101+M102,""),""),""),"") ->  | Q99: =IF(ISNUMBER(P99),VLOOKUP(BV99,BX:BY,2,FALSE),"") ->  | S99: =IF(ISNUMBER(R99),VLOOKUP(AB99,AC:AD,2,FALSE),"") ->  | Z99: =K99 ->  | AA99: =M99 ->  | AC99: =IF(ISNUMBER(SMALL(AB:AB,ROW()-2)),SMALL(AB:AB,ROW()-2),"") ->  | AD99: 60 | AG99: =IF(ISNUMBER(LARGE(F:F,ROW()-2)),LARGE(F:F,ROW()-2),"") ->  | AH99: 15 | AJ99: =IF(ISNUMBER(LARGE(H:H,ROW()-2)),LARGE(H:H,ROW()-2),"") ->  | AK99: 9 | AM99: =IF(ISNUMBER(SMALL(J:J,ROW()-2)),SMALL(J:J,ROW()-2),"") ->  | AN99: 12 | AP99: =IF(ISNUMBER(SMALL(L:L,ROW()-2)),SMALL(L:L,ROW()-2),"") ->  | AQ99: 21 | AS99: =IF(ISNUMBER(LARGE(N:N,ROW()-2)),LARGE(N:N,ROW()-2),"") ->  | AT99: 8 | AV99: =IF(ISNUMBER(SMALL(#REF!,ROW()-2)),SMALL(#REF!,ROW()-2),"") ->  | AW99: 1 | AZ99: =IF(ISNUMBER(LARGE(AY:AY,ROW()-2)),LARGE(AY:AY,ROW()-2),"") ->  | BB99: =IF(ISNUMBER(AY99),VLOOKUP(AY99,AZ:BA,2,FALSE),"") ->  | BD99: =P99 ->  | BE99: =IF(ISNUMBER(SMALL(P:P,ROW()-2)),SMALL(P:P,ROW()-2),"") ->  | BF99: 15 | BG99: =IF(ISNUMBER(BD99),VLOOKUP(BD99,BE:BF,2,FALSE),"") ->  | BI99: =IF(ISNUMBER(SMALL(R:R,ROW()-2)),SMALL(R:R,ROW()-2),"") ->  | BJ99: 31 | BN99: =P99 ->  | BO99: =SUM(G99,G100,G101,G102) -> 0 | BP99: =SUM(I99,I100,I101,I102) -> 0 | BQ99: =SUM(K99,K100,K101,K102) -> 0 | BR99: =O99 ->  | BS99: =#REF! ->  | BT99: =SUM(M99,M100,M101,M102) -> 0 | BU99: =#REF! ->  | BV99: =IF(ISNUMBER(P99),CONCATENATE(BN99+100,BO99+100,BP99+100,BQ99+100,BT99+100,BR99+100)+0,"") ->  | BW99: =IF(ISNUMBER(SMALL(BV:BV,ROW()-2)),SMALL(BV:BV,ROW()-2),"") ->  | BX99: =IF(ISNUMBER(SMALL(BV:BV,ROW()-2)),SMALL(BV:BV,ROW()-2),"") ->  | BY99: 16 | CC99: =VLOOKUP(F99,AG:AH,2,FALSE) ->  | CD99: =VLOOKUP(N99,AS:AT,2,FALSE) ->  | CE99: =IF(ISNUMBER(J99),VLOOKUP(J99,AM:AN,2,FALSE),"") ->  | CG99: =VLOOKUP(H99,AJ:AK,2,FALSE) -> 
C100: =CONCATENATE(B99,"B") -> 25B | AD100: 60 | AH100: =IF(AG99<>AG100,AH99+1,AH99) -> 15 | AK100: 9 | AN100: 12 | AQ100: 21 | AT100: 8 | AV100: =IF(ISNUMBER(SMALL(#REF!,ROW()-2)),SMALL(#REF!,ROW()-2),"") ->  | AW100: 1 | BF100: 15 | BJ100: 31 | BY100: 16
C101: =CONCATENATE(B99,"C") -> 25C | AD101: 60 | AH101: 15 | AK101: 9 | AN101: 12 | AQ101: 21 | AT101: 8 | AV101: =IF(ISNUMBER(SMALL(#REF!,ROW()-2)),SMALL(#REF!,ROW()-2),"") ->  | AW101: 1 | BF101: 15 | BJ101: 31 | BY101: 16
C102: =CONCATENATE(B99,"D") -> 25D | AD102: 60 | AH102: 15 | AK102: 9 | AN102: 12 | AQ102: 21 | AT102: 8 | AV102: =IF(ISNUMBER(SMALL(#REF!,ROW()-2)),SMALL(#REF!,ROW()-2),"") ->  | AW102: 1 | BB102: =IF(ISNUMBER(AY102),VLOOKUP(AY102,AZ:BA,2,FALSE),"") ->  | BD102: =P102 -> 0 | BF102: 15 | BG102: =IF(ISNUMBER(BD102),VLOOKUP(BD102,BE:BF,2,FALSE),"") -> 0 | BJ102: 31 | BS102: =#REF! ->  | BU102: =#REF! ->  | BY102: 16
B103: 26 | C103: =CONCATENATE(B103,"A") -> 26A | O103: =IF(ISBLANK(N103),"",IF(N103=0,$CC$2,CD103)) ->  | P103: =IF(ISNUMBER(O103),IF(ISNUMBER(O103),IF(ISNUMBER(O103),IF(ISNUMBER(O103),O103+G103+G104+G105+G106+I103+I104+I105+I106+K103+K104+K105+K106+M103+M104+M105+M106,""),""),""),"") ->  | Q103: =IF(ISNUMBER(P103),VLOOKUP(BV103,BX:BY,2,FALSE),"") ->  | AD103: 60 | AH103: 15 | AK103: 9 | AN103: 12 | AQ103: 21 | AT103: 8 | AV103: =IF(ISNUMBER(SMALL(#REF!,ROW()-2)),SMALL(#REF!,ROW()-2),"") ->  | AW103: 1 | BF103: 15 | BJ103: 31 | BN103: =P103 ->  | BO103: =SUM(G103,G104,G105,G106) -> 0 | BP103: =SUM(I103,I104,I105,I106) -> 0 | BQ103: =SUM(K103,K104,K105,K106) -> 0 | BR103: =O103 ->  | BT103: =SUM(M103,M104,M105,M106) -> 0 | BV103: =IF(ISNUMBER(P103),CONCATENATE(BN103+100,BO103+100,BP103+100,BQ103+100,BT103+100,BR103+100)+0,"") ->  | BW103: =IF(ISNUMBER(SMALL(BV:BV,ROW()-2)),SMALL(BV:BV,ROW()-2),"") ->  | BY103: 16 | CD103: =VLOOKUP(N103,AS:AT,2,FALSE) -> 
C104: =CONCATENATE(B103,"B") -> 26B | AD104: 60 | AH104: 15 | AK104: 9 | AN104: 12 | AQ104: 21 | AT104: 8 | AV104: =IF(ISNUMBER(SMALL(#REF!,ROW()-2)),SMALL(#REF!,ROW()-2),"") ->  | AW104: 1 | BF104: 15 | BJ104: 31 | BY104: 16
C105: =CONCATENATE(B103,"C") -> 26C | AD105: 60 | AH105: 15 | AK105: 9 | AN105: 12 | AQ105: 21 | AT105: 8 | AV105: =IF(ISNUMBER(SMALL(#REF!,ROW()-2)),SMALL(#REF!,ROW()-2),"") ->  | AW105: 1 | BB105: =IF(ISNUMBER(AY105),VLOOKUP(AY105,AZ:BA,2,FALSE),"") ->  | BD105: =P105 -> 0 | BF105: 15 | BG105: =IF(ISNUMBER(BD105),VLOOKUP(BD105,BE:BF,2,FALSE),"") -> 0 | BJ105: 31 | BS105: =#REF! ->  | BU105: =#REF! ->  | BY105: 16
C106: =CONCATENATE(B103,"D") -> 26D | AD106: 60 | AH106: 15 | AK106: 9 | AN106: 12 | AQ106: 21 | AT106: 8 | AV106: =IF(ISNUMBER(SMALL(#REF!,ROW()-2)),SMALL(#REF!,ROW()-2),"") ->  | AW106: 1 | BF106: 15 | BJ106: 31 | BY106: 16
B107: 27 | C107: =CONCATENATE(B107,"A") -> 27A | O107: =IF(ISBLANK(N107),"",IF(N107=0,$CC$2,CD107)) ->  | P107: =IF(ISNUMBER(O107),IF(ISNUMBER(O107),IF(ISNUMBER(O107),IF(ISNUMBER(O107),O107+G107+G108+G109+G110+I107+I108+I109+I110+K107+K108+K109+K110+M107+M108+M109+M110,""),""),""),"") ->  | Q107: =IF(ISNUMBER(P107),VLOOKUP(BV107,BX:BY,2,FALSE),"") ->  | AD107: 60 | AH107: 15 | AK107: 9 | AN107: 12 | AQ107: 21 | AT107: 8 | AV107: =IF(ISNUMBER(SMALL(#REF!,ROW()-2)),SMALL(#REF!,ROW()-2),"") ->  | AW107: 1 | BF107: 15 | BJ107: 31 | BN107: =P107 ->  | BO107: =SUM(G107,G108,G109,G110) -> 0 | BP107: =SUM(I107,I108,I109,I110) -> 0 | BQ107: =SUM(K107,K108,K109,K110) -> 0 | BR107: =O107 ->  | BT107: =SUM(M107,M108,M109,M110) -> 0 | BV107: =IF(ISNUMBER(P107),CONCATENATE(BN107+100,BO107+100,BP107+100,BQ107+100,BT107+100,BR107+100)+0,"") ->  | BW107: =IF(ISNUMBER(SMALL(BV:BV,ROW()-2)),SMALL(BV:BV,ROW()-2),"") ->  | BY107: 16 | CD107: =VLOOKUP(N107,AS:AT,2,FALSE) -> 
C108: =CONCATENATE(B107,"B") -> 27B | AD108: 60 | AH108: 15 | AK108: 9 | AN108: 12 | AQ108: 21 | AT108: 8 | AV108: =IF(ISNUMBER(SMALL(#REF!,ROW()-2)),SMALL(#REF!,ROW()-2),"") ->  | AW108: 1 | BB108: =IF(ISNUMBER(AY108),VLOOKUP(AY108,AZ:BA,2,FALSE),"") ->  | BD108: =P108 -> 0 | BF108: 15 | BG108: =IF(ISNUMBER(BD108),VLOOKUP(BD108,BE:BF,2,FALSE),"") -> 0 | BJ108: 31 | BS108: =#REF! ->  | BU108: =#REF! ->  | BY108: 16
C109: =CONCATENATE(B107,"C") -> 27C | AD109: 60 | AH109: 15 | AK109: 9 | AN109: 12 | AQ109: 21 | AT109: 8 | AV109: =IF(ISNUMBER(SMALL(#REF!,ROW()-2)),SMALL(#REF!,ROW()-2),"") ->  | AW109: 1 | BF109: 15 | BJ109: 31 | BY109: 16
C110: =CONCATENATE(B107,"D") -> 27D | AD110: 60 | AH110: 15 | AK110: 9 | AN110: 12 | AQ110: 21 | AT110: 8 | AV110: =IF(ISNUMBER(SMALL(#REF!,ROW()-2)),SMALL(#REF!,ROW()-2),"") ->  | AW110: 1 | BF110: 15 | BJ110: 31 | BY110: 16
B111: 28 | C111: =CONCATENATE(B111,"A") -> 28A | O111: =IF(ISBLANK(N111),"",IF(N111=0,$CC$2,CD111)) ->  | P111: =IF(ISNUMBER(O111),IF(ISNUMBER(O111),IF(ISNUMBER(O111),IF(ISNUMBER(O111),O111+G111+G112+G113+G114+I111+I112+I113+I114+K111+K112+K113+K114+M111+M112+M113+M114,""),""),""),"") ->  | Q111: =IF(ISNUMBER(P111),VLOOKUP(BV111,BX:BY,2,FALSE),"") ->  | AD111: 60 | AH111: 15 | AK111: 9 | AN111: 12 | AQ111: 21 | AT111: 8 | AV111: =IF(ISNUMBER(SMALL(#REF!,ROW()-2)),SMALL(#REF!,ROW()-2),"") ->  | AW111: 1 | BB111: =IF(ISNUMBER(AY111),VLOOKUP(AY111,AZ:BA,2,FALSE),"") ->  | BD111: =P111 ->  | BF111: 15 | BG111: =IF(ISNUMBER(BD111),VLOOKUP(BD111,BE:BF,2,FALSE),"") ->  | BJ111: 31 | BN111: =P111 ->  | BO111: =SUM(G111,G112,G113,G114) -> 0 | BP111: =SUM(I111,I112,I113,I114) -> 0 | BQ111: =SUM(K111,K112,K113,K114) -> 0 | BR111: =O111 ->  | BS111: =#REF! ->  | BT111: =SUM(M111,M112,M113,M114) -> 0 | BU111: =#REF! ->  | BV111: =IF(ISNUMBER(P111),CONCATENATE(BN111+100,BO111+100,BP111+100,BQ111+100,BT111+100,BR111+100)+0,"") ->  | BW111: =IF(ISNUMBER(SMALL(BV:BV,ROW()-2)),SMALL(BV:BV,ROW()-2),"") ->  | BY111: 16 | CD111: =VLOOKUP(N111,AS:AT,2,FALSE) -> 
C112: =CONCATENATE(B111,"B") -> 28B | AD112: 60 | AH112: 15 | AK112: 9 | AN112: 12 | AQ112: 21 | AT112: 8 | AV112: =IF(ISNUMBER(SMALL(#REF!,ROW()-2)),SMALL(#REF!,ROW()-2),"") ->  | AW112: 1 | BF112: 15 | BJ112: 31 | BY112: 16
C113: =CONCATENATE(B111,"C") -> 28C | AD113: 60 | AH113: 15 | AK113: 9 | AN113: 12 | AQ113: 21 | AT113: 8 | AV113: =IF(ISNUMBER(SMALL(#REF!,ROW()-2)),SMALL(#REF!,ROW()-2),"") ->  | AW113: 1 | BF113: 15 | BJ113: 31 | BY113: 16
C114: =CONCATENATE(B111,"D") -> 28D | AD114: 60 | AH114: 15 | AK114: 9 | AN114: 12 | AQ114: 21 | AT114: 8 | AV114: =IF(ISNUMBER(SMALL(#REF!,ROW()-2)),SMALL(#REF!,ROW()-2),"") ->  | AW114: 1 | BB114: =IF(ISNUMBER(AY114),VLOOKUP(AY114,AZ:BA,2,FALSE),"") ->  | BD114: =P114 -> 0 | BF114: 15 | BG114: =IF(ISNUMBER(BD114),VLOOKUP(BD114,BE:BF,2,FALSE),"") -> 0 | BJ114: 31 | BS114: =#REF! ->  | BU114: =#REF! ->  | BY114: 16
B115: 29 | C115: =CONCATENATE(B115,"A") -> 29A | O115: =IF(ISBLANK(N115),"",IF(N115=0,$CC$2,CD115)) ->  | P115: =IF(ISNUMBER(O115),IF(ISNUMBER(O115),IF(ISNUMBER(O115),IF(ISNUMBER(O115),O115+G115+G116+G117+G118+I115+I116+I117+I118+K115+K116+K117+K118+M115+M116+M117+M118,""),""),""),"") ->  | Q115: =IF(ISNUMBER(P115),VLOOKUP(BV115,BX:BY,2,FALSE),"") ->  | AD115: 60 | AH115: 15 | AK115: 9 | AN115: 12 | AQ115: 21 | AT115: 8 | AV115: =IF(ISNUMBER(SMALL(#REF!,ROW()-2)),SMALL(#REF!,ROW()-2),"") ->  | AW115: 1 | BF115: 15 | BJ115: 31 | BN115: =P115 ->  | BO115: =SUM(G115,G116,G117,G118) -> 0 | BP115: =SUM(I115,I116,I117,I118) -> 0 | BQ115: =SUM(K115,K116,K117,K118) -> 0 | BR115: =O115 ->  | BT115: =SUM(M115,M116,M117,M118) -> 0 | BV115: =IF(ISNUMBER(P115),CONCATENATE(BN115+100,BO115+100,BP115+100,BQ115+100,BT115+100,BR115+100)+0,"") ->  | BW115: =IF(ISNUMBER(SMALL(BV:BV,ROW()-2)),SMALL(BV:BV,ROW()-2),"") ->  | BY115: 16 | CD115: =VLOOKUP(N115,AS:AT,2,FALSE) -> 
C116: =CONCATENATE(B115,"B") -> 29B | AD116: 60 | AH116: 15 | AK116: 9 | AN116: 12 | AQ116: 21 | AT116: 8 | AV116: =IF(ISNUMBER(SMALL(#REF!,ROW()-2)),SMALL(#REF!,ROW()-2),"") ->  | AW116: 1 | BF116: 15 | BJ116: 31 | BY116: 16
C117: =CONCATENATE(B115,"C") -> 29C | AD117: 60 | AH117: 15 | AK117: 9 | AN117: 12 | AQ117: 21 | AT117: 8 | AV117: =IF(ISNUMBER(SMALL(#REF!,ROW()-2)),SMALL(#REF!,ROW()-2),"") ->  | AW117: 1 | BB117: =IF(ISNUMBER(AY117),VLOOKUP(AY117,AZ:BA,2,FALSE),"") ->  | BD117: =P117 -> 0 | BF117: 15 | BG117: =IF(ISNUMBER(BD117),VLOOKUP(BD117,BE:BF,2,FALSE),"") -> 0 | BJ117: 31 | BS117: =#REF! ->  | BU117: =#REF! ->  | BY117: 16
C118: =CONCATENATE(B115,"D") -> 29D | AD118: 60 | AH118: 15 | AK118: 9 | AN118: 12 | AQ118: 21 | AT118: 8 | AV118: =IF(ISNUMBER(SMALL(#REF!,ROW()-2)),SMALL(#REF!,ROW()-2),"") ->  | AW118: 1 | BF118: 15 | BJ118: 31 | BY118: 16
B119: 30 | C119: =CONCATENATE(B119,"A") -> 30A | O119: =IF(ISBLANK(N119),"",IF(N119=0,$CC$2,CD119)) ->  | P119: =IF(ISNUMBER(O119),IF(ISNUMBER(O119),IF(ISNUMBER(O119),IF(ISNUMBER(O119),O119+G119+G120+G121+G122+I119+I120+I121+I122+K119+K120+K121+K122+M119+M120+M121+M122,""),""),""),"") ->  | Q119: =IF(ISNUMBER(P119),VLOOKUP(BV119,BX:BY,2,FALSE),"") ->  | AD119: 60 | AH119: 15 | AK119: 9 | AN119: 12 | AQ119: 21 | AT119: 8 | AV119: =IF(ISNUMBER(SMALL(#REF!,ROW()-2)),SMALL(#REF!,ROW()-2),"") ->  | AW119: 1 | BF119: 15 | BJ119: 31 | BN119: =P119 ->  | BO119: =SUM(G119,G120,G121,G122) -> 0 | BP119: =SUM(I119,I120,I121,I122) -> 0 | BQ119: =SUM(K119,K120,K121,K122) -> 0 | BR119: =O119 ->  | BT119: =SUM(M119,M120,M121,M122) -> 0 | BV119: =IF(ISNUMBER(P119),CONCATENATE(BN119+100,BO119+100,BP119+100,BQ119+100,BT119+100,BR119+100)+0,"") ->  | BW119: =IF(ISNUMBER(SMALL(BV:BV,ROW()-2)),SMALL(BV:BV,ROW()-2),"") ->  | BY119: 16 | CD119: =VLOOKUP(N119,AS:AT,2,FALSE) -> 
C120: =CONCATENATE(B119,"B") -> 30B | AD120: 60 | AH120: 15 | AK120: 9 | AN120: 12 | AQ120: 21 | AT120: 8 | AV120: =IF(ISNUMBER(SMALL(#REF!,ROW()-2)),SMALL(#REF!,ROW()-2),"") ->  | AW120: 1 | BB120: =IF(ISNUMBER(AY120),VLOOKUP(AY120,AZ:BA,2,FALSE),"") ->  | BD120: =P120 -> 0 | BF120: 15 | BG120: =IF(ISNUMBER(BD120),VLOOKUP(BD120,BE:BF,2,FALSE),"") -> 0 | BJ120: 31 | BS120: =#REF! ->  | BU120: =#REF! ->  | BY120: 16
C121: =CONCATENATE(B119,"C") -> 30C | AD121: 60 | AH121: 15 | AK121: 9 | AN121: 12 | AQ121: 21 | AT121: 8 | AV121: =IF(ISNUMBER(SMALL(#REF!,ROW()-2)),SMALL(#REF!,ROW()-2),"") ->  | AW121: 1 | BF121: 15 | BJ121: 31 | BY121: 16
C122: =CONCATENATE(B119,"D") -> 30D | AD122: 60 | AH122: 15 | AK122: 9 | AN122: 12 | AQ122: 21 | AT122: 8 | AV122: =IF(ISNUMBER(SMALL(#REF!,ROW()-2)),SMALL(#REF!,ROW()-2),"") ->  | AW122: 1 | BF122: 15 | BJ122: 31 | BY122: 16
B123: 31 | C123: =CONCATENATE(B123,"A") -> 31A | O123: =IF(ISBLANK(N123),"",IF(N123=0,$CC$2,CD123)) ->  | P123: =IF(ISNUMBER(O123),IF(ISNUMBER(O123),IF(ISNUMBER(O123),IF(ISNUMBER(O123),O123+G123+G124+G125+G126+I123+I124+I125+I126+K123+K124+K125+K126+M123+M124+M125+M126,""),""),""),"") ->  | Q123: =IF(ISNUMBER(P123),VLOOKUP(BV123,BX:BY,2,FALSE),"") ->  | AD123: 60 | AH123: 15 | AK123: 9 | AN123: 12 | AQ123: 21 | AT123: 8 | AV123: =IF(ISNUMBER(SMALL(#REF!,ROW()-2)),SMALL(#REF!,ROW()-2),"") ->  | AW123: 1 | BB123: =IF(ISNUMBER(AY123),VLOOKUP(AY123,AZ:BA,2,FALSE),"") ->  | BD123: =P123 ->  | BF123: 15 | BG123: =IF(ISNUMBER(BD123),VLOOKUP(BD123,BE:BF,2,FALSE),"") ->  | BJ123: 31 | BN123: =P123 ->  | BO123: =SUM(G123,G124,G125,G126) -> 0 | BP123: =SUM(I123,I124,I125,I126) -> 0 | BQ123: =SUM(K123,K124,K125,K126) -> 0 | BR123: =O123 ->  | BS123: =#REF! ->  | BT123: =SUM(M123,M124,M125,M126) -> 0 | BU123: =#REF! ->  | BV123: =IF(ISNUMBER(P123),CONCATENATE(BN123+100,BO123+100,BP123+100,BQ123+100,BT123+100,BR123+100)+0,"") ->  | BW123: =IF(ISNUMBER(SMALL(BV:BV,ROW()-2)),SMALL(BV:BV,ROW()-2),"") ->  | BY123: 16 | CD123: =VLOOKUP(N123,AS:AT,2,FALSE) -> 
C124: =CONCATENATE(B123,"B") -> 31B | AD124: 60 | AH124: 15 | AK124: 9 | AN124: 12 | AQ124: 21 | AT124: 8 | AV124: =IF(ISNUMBER(SMALL(#REF!,ROW()-2)),SMALL(#REF!,ROW()-2),"") ->  | AW124: 1 | BF124: 15 | BJ124: 31 | BY124: 16
C125: =CONCATENATE(B123,"C") -> 31C | AD125: 60 | AH125: 15 | AK125: 9 | AN125: 12 | AQ125: 21 | AT125: 8 | AV125: =IF(ISNUMBER(SMALL(#REF!,ROW()-2)),SMALL(#REF!,ROW()-2),"") ->  | AW125: 1 | BF125: 15 | BJ125: 31 | BY125: 16
C126: =CONCATENATE(B123,"D") -> 31D | AD126: 60 | AH126: 15 | AK126: 9 | AN126: 12 | AQ126: 21 | AT126: 8 | AV126: =IF(ISNUMBER(SMALL(#REF!,ROW()-2)),SMALL(#REF!,ROW()-2),"") ->  | AW126: 1 | BB126: =IF(ISNUMBER(AY126),VLOOKUP(AY126,AZ:BA,2,FALSE),"") ->  | BD126: =P126 -> 0 | BF126: 15 | BG126: =IF(ISNUMBER(BD126),VLOOKUP(BD126,BE:BF,2,FALSE),"") -> 0 | BJ126: 31 | BS126: =#REF! ->  | BU126: =#REF! ->  | BY126: 16
B127: 32 | C127: =CONCATENATE(B127,"A") -> 32A | O127: =IF(ISBLANK(N127),"",IF(N127=0,$CC$2,CD127)) ->  | P127: =IF(ISNUMBER(O127),IF(ISNUMBER(O127),IF(ISNUMBER(O127),IF(ISNUMBER(O127),O127+G127+G128+G129+G130+I127+I128+I129+I130+K127+K128+K129+K130+M127+M128+M129+M130,""),""),""),"") ->  | Q127: =IF(ISNUMBER(P127),VLOOKUP(BV127,BX:BY,2,FALSE),"") ->  | AD127: 60 | AH127: 15 | AK127: 9 | AN127: 12 | AQ127: 21 | AT127: 8 | AV127: =IF(ISNUMBER(SMALL(#REF!,ROW()-2)),SMALL(#REF!,ROW()-2),"") ->  | AW127: 1 | BF127: 15 | BJ127: 31 | BN127: =P127 ->  | BO127: =SUM(G127,G128,G129,G130) -> 0 | BP127: =SUM(I127,I128,I129,I130) -> 0 | BQ127: =SUM(K127,K128,K129,K130) -> 0 | BR127: =O127 ->  | BT127: =SUM(M127,M128,M129,M130) -> 0 | BV127: =IF(ISNUMBER(P127),CONCATENATE(BN127+100,BO127+100,BP127+100,BQ127+100,BT127+100,BR127+100)+0,"") ->  | BW127: =IF(ISNUMBER(SMALL(BV:BV,ROW()-2)),SMALL(BV:BV,ROW()-2),"") ->  | BY127: 16 | CD127: =VLOOKUP(N127,AS:AT,2,FALSE) -> 
C128: =CONCATENATE(B127,"B") -> 32B | AD128: 60 | AH128: 15 | AK128: 9 | AN128: 12 | AQ128: 21 | AT128: 8 | AV128: =IF(ISNUMBER(SMALL(#REF!,ROW()-2)),SMALL(#REF!,ROW()-2),"") ->  | AW128: 1 | BF128: 15 | BJ128: 31 | BY128: 16
C129: =CONCATENATE(B127,"C") -> 32C | AD129: 60 | AH129: 15 | AK129: 9 | AN129: 12 | AQ129: 21 | AT129: 8 | AV129: =IF(ISNUMBER(SMALL(#REF!,ROW()-2)),SMALL(#REF!,ROW()-2),"") ->  | AW129: 1 | BB129: =IF(ISNUMBER(AY129),VLOOKUP(AY129,AZ:BA,2,FALSE),"") ->  | BD129: =P129 -> 0 | BF129: 15 | BG129: =IF(ISNUMBER(BD129),VLOOKUP(BD129,BE:BF,2,FALSE),"") -> 0 | BJ129: 31 | BS129: =#REF! ->  | BU129: =#REF! ->  | BY129: 16
C130: =CONCATENATE(B127,"D") -> 32D | AD130: 60 | AH130: 15 | AK130: 9 | AN130: 12 | AQ130: 21 | AT130: 8 | AV130: =IF(ISNUMBER(SMALL(#REF!,ROW()-2)),SMALL(#REF!,ROW()-2),"") ->  | AW130: 1 | BF130: 15 | BJ130: 31 | BY130: 16
B131: 33 | C131: =CONCATENATE(B131,"A") -> 33A | G131: =IF(ISBLANK(F131),"",IF(F131=0,$CB$2,CC131)) ->  | I131: =IF(ISBLANK(H131),"",IF(H131=0,$CF$2,CG131)) ->  | K131: =IF(ISNUMBER(J131),VLOOKUP(J131,AM:AN,2,FALSE),"") ->  | M131: =IF(ISNUMBER(L131),VLOOKUP(L131,AP:AQ,2,FALSE),"") ->  | O131: =IF(ISBLANK(N131),"",IF(N131=0,$CC$2,CD131)) ->  | P131: =IF(ISNUMBER(O131),IF(ISNUMBER(O131),IF(ISNUMBER(O131),IF(ISNUMBER(O131),O131+G131+G132+G133+G134+I131+I132+I133+I134+K131+K132+K133+K134+M131+M132+M133+M134,""),""),""),"") ->  | Q131: =IF(ISNUMBER(P131),VLOOKUP(BV131,BX:BY,2,FALSE),"") ->  | S131: =IF(ISNUMBER(R131),VLOOKUP(AB131,AC:AD,2,FALSE),"") ->  | Z131: =K131 ->  | AA131: =M131 ->  | AC131: =IF(ISNUMBER(SMALL(AB:AB,ROW()-2)),SMALL(AB:AB,ROW()-2),"") ->  | AD131: 60 | AG131: =IF(ISNUMBER(LARGE(F:F,ROW()-2)),LARGE(F:F,ROW()-2),"") ->  | AH131: 15 | AJ131: =IF(ISNUMBER(LARGE(H:H,ROW()-2)),LARGE(H:H,ROW()-2),"") ->  | AK131: 9 | AM131: =IF(ISNUMBER(SMALL(J:J,ROW()-2)),SMALL(J:J,ROW()-2),"") ->  | AN131: 12 | AP131: =IF(ISNUMBER(SMALL(L:L,ROW()-2)),SMALL(L:L,ROW()-2),"") ->  | AQ131: 21 | AS131: =IF(ISNUMBER(LARGE(N:N,ROW()-2)),LARGE(N:N,ROW()-2),"") ->  | AT131: 8 | AV131: =IF(ISNUMBER(SMALL(#REF!,ROW()-2)),SMALL(#REF!,ROW()-2),"") ->  | AW131: 1 | AZ131: =IF(ISNUMBER(LARGE(AY:AY,ROW()-2)),LARGE(AY:AY,ROW()-2),"") ->  | BE131: =IF(ISNUMBER(SMALL(P:P,ROW()-2)),SMALL(P:P,ROW()-2),"") ->  | BF131: 15 | BI131: =IF(ISNUMBER(SMALL(R:R,ROW()-2)),SMALL(R:R,ROW()-2),"") ->  | BJ131: 31 | BN131: =P131 ->  | BO131: =SUM(G131,G132,G133,G134) -> 0 | BP131: =SUM(I131,I132,I133,I134) -> 0 | BQ131: =SUM(K131,K132,K133,K134) -> 0 | BR131: =O131 ->  | BT131: =SUM(M131,M132,M133,M134) -> 0 | BV131: =IF(ISNUMBER(P131),CONCATENATE(BN131+100,BO131+100,BP131+100,BQ131+100,BT131+100,BR131+100)+0,"") ->  | BW131: =IF(ISNUMBER(SMALL(BV:BV,ROW()-2)),SMALL(BV:BV,ROW()-2),"") ->  | BX131: =IF(ISNUMBER(SMALL(BV:BV,ROW()-2)),SMALL(BV:BV,ROW()-2),"") ->  | BY131: 16 | CC131: =VLOOKUP(F131,AG:AH,2,FALSE) ->  | CD131: =VLOOKUP(N131,AS:AT,2,FALSE) ->  | CE131: =IF(ISNUMBER(J131),VLOOKUP(J131,AM:AN,2,FALSE),"") ->  | CG131: =VLOOKUP(H131,AJ:AK,2,FALSE) -> 
B132: =IF(MOD(ROW(),4)=3,((ROW()+1)/4),"") ->  | C132: =CONCATENATE(B131,"B") -> 33B | R132: =IF(ISNUMBER(G132),IF(ISNUMBER(I132),IF(ISNUMBER(K132),IF(ISNUMBER(M132),SUM(G132,I132,K132,M132),""),""),""),"") ->  | Y132: =I132 ->  | AB132: =IF(ISNUMBER(R132),CONCATENATE(R132+100,X132+100,Y132+100,Z132+100,AA132+100)+0,"") ->  | AD132: 60 | AH132: =IF(AG131<>AG132,AH131+1,AH131) -> 15 | AK132: =IF(AJ131<>AJ132,AK131+1,AK131) -> 9 | AN132: 12 | AQ132: 21 | AT132: 8 | AV132: =IF(ISNUMBER(SMALL(#REF!,ROW()-2)),SMALL(#REF!,ROW()-2),"") ->  | AW132: 1 | BB132: =IF(ISNUMBER(AY132),VLOOKUP(AY132,AZ:BA,2,FALSE),"") ->  | BD132: =P132 -> 0 | BF132: =IF(BE131<>BE132,BF131+1,BF131) -> 15 | BG132: =IF(ISNUMBER(BD132),VLOOKUP(BD132,BE:BF,2,FALSE),"") -> 0 | BJ132: =IF(BI131<>BI132,BJ131+1,BJ131) -> 31 | BS132: =#REF! ->  | BU132: =#REF! ->  | BY132: =IF(BX131<>BX132,BY131+1,BY131) -> 16
C133: =CONCATENATE(B131,"C") -> 33C | X133: =G133 ->  | AD133: =IF(AC132<>AC133,AD132+1,AD132) -> 60 | AH133: 15 | AK133: 9 | AN133: =IF(AM132<>AM133,AN132+1,AN132) -> 12 | AQ133: =IF(AP132<>AP133,AQ132+1,AQ132) -> 21 | AT133: =IF(AS132<>AS133,AT132+1,AT132) -> 8 | AV133: =IF(ISNUMBER(SMALL(#REF!,ROW()-2)),SMALL(#REF!,ROW()-2),"") ->  | AW133: =IF(AV132<>AV133,AW132+1,AW132) -> 1 | BF133: 15 | BJ133: 31 | BY133: 16
C134: =CONCATENATE(B131,"D") -> 33D | AD134: 60 | AH134: 15 | AK134: 9 | AN134: 12 | AQ134: 21 | AT134: 8 | AV134: =IF(ISNUMBER(SMALL(#REF!,ROW()-2)),SMALL(#REF!,ROW()-2),"") ->  | AW134: 1 | BF134: 15 | BJ134: 31 | BY134: 16
B135: 34 | C135: =CONCATENATE(B135,"A") -> 34A | O135: =IF(ISBLANK(N135),"",IF(N135=0,$CC$2,CD135)) ->  | P135: =IF(ISNUMBER(O135),IF(ISNUMBER(O135),IF(ISNUMBER(O135),IF(ISNUMBER(O135),O135+G135+G136+G137+G138+I135+I136+I137+I138+K135+K136+K137+K138+M135+M136+M137+M138,""),""),""),"") ->  | Q135: =IF(ISNUMBER(P135),VLOOKUP(BV135,BX:BY,2,FALSE),"") ->  | AD135: 60 | AH135: 15 | AK135: 9 | AN135: 12 | AQ135: 21 | AT135: 8 | AV135: =IF(ISNUMBER(SMALL(#REF!,ROW()-2)),SMALL(#REF!,ROW()-2),"") ->  | AW135: 1 | BB135: =IF(ISNUMBER(AY135),VLOOKUP(AY135,AZ:BA,2,FALSE),"") ->  | BD135: =P135 ->  | BF135: 15 | BG135: =IF(ISNUMBER(BD135),VLOOKUP(BD135,BE:BF,2,FALSE),"") ->  | BJ135: 31 | BN135: =P135 ->  | BO135: =SUM(G135,G136,G137,G138) -> 0 | BP135: =SUM(I135,I136,I137,I138) -> 0 | BQ135: =SUM(K135,K136,K137,K138) -> 0 | BR135: =O135 ->  | BS135: =#REF! ->  | BT135: =SUM(M135,M136,M137,M138) -> 0 | BU135: =#REF! ->  | BV135: =IF(ISNUMBER(P135),CONCATENATE(BN135+100,BO135+100,BP135+100,BQ135+100,BT135+100,BR135+100)+0,"") ->  | BW135: =IF(ISNUMBER(SMALL(BV:BV,ROW()-2)),SMALL(BV:BV,ROW()-2),"") ->  | BY135: 16 | CD135: =VLOOKUP(N135,AS:AT,2,FALSE) -> 
C136: =CONCATENATE(B135,"B") -> 34B | AD136: 60 | AH136: 15 | AK136: 9 | AN136: 12 | AQ136: 21 | AT136: 8 | AV136: =IF(ISNUMBER(SMALL(#REF!,ROW()-2)),SMALL(#REF!,ROW()-2),"") ->  | AW136: 1 | BF136: 15 | BJ136: 31 | BY136: 16
C137: =CONCATENATE(B135,"C") -> 34C | AD137: 60 | AH137: 15 | AK137: 9 | AN137: 12 | AQ137: 21 | AT137: 8 | AV137: =IF(ISNUMBER(SMALL(#REF!,ROW()-2)),SMALL(#REF!,ROW()-2),"") ->  | AW137: 1 | BF137: 15 | BJ137: 31 | BY137: 16
C138: =CONCATENATE(B135,"D") -> 34D | AD138: 60 | AH138: 15 | AK138: 9 | AN138: 12 | AQ138: 21 | AT138: 8 | AV138: =IF(ISNUMBER(SMALL(#REF!,ROW()-2)),SMALL(#REF!,ROW()-2),"") ->  | AW138: 1 | BB138: =IF(ISNUMBER(AY138),VLOOKUP(AY138,AZ:BA,2,FALSE),"") ->  | BD138: =P138 -> 0 | BF138: 15 | BG138: =IF(ISNUMBER(BD138),VLOOKUP(BD138,BE:BF,2,FALSE),"") -> 0 | BJ138: 31 | BS138: =#REF! ->  | BU138: =#REF! ->  | BY138: 16
B139: 35 | C139: =CONCATENATE(B139,"A") -> 35A | O139: =IF(ISBLANK(N139),"",IF(N139=0,$CC$2,CD139)) ->  | P139: =IF(ISNUMBER(O139),IF(ISNUMBER(O139),IF(ISNUMBER(O139),IF(ISNUMBER(O139),O139+G139+G140+G141+G142+I139+I140+I141+I142+K139+K140+K141+K142+M139+M140+M141+M142,""),""),""),"") ->  | Q139: =IF(ISNUMBER(P139),VLOOKUP(BV139,BX:BY,2,FALSE),"") ->  | AD139: 60 | AH139: 15 | AK139: 9 | AN139: 12 | AQ139: 21 | AT139: 8 | AV139: =IF(ISNUMBER(SMALL(#REF!,ROW()-2)),SMALL(#REF!,ROW()-2),"") ->  | AW139: 1 | BF139: 15 | BJ139: 31 | BN139: =P139 ->  | BO139: =SUM(G139,G140,G141,G142) -> 0 | BP139: =SUM(I139,I140,I141,I142) -> 0 | BQ139: =SUM(K139,K140,K141,K142) -> 0 | BR139: =O139 ->  | BT139: =SUM(M139,M140,M141,M142) -> 0 | BV139: =IF(ISNUMBER(P139),CONCATENATE(BN139+100,BO139+100,BP139+100,BQ139+100,BT139+100,BR139+100)+0,"") ->  | BW139: =IF(ISNUMBER(SMALL(BV:BV,ROW()-2)),SMALL(BV:BV,ROW()-2),"") ->  | BY139: 16 | CD139: =VLOOKUP(N139,AS:AT,2,FALSE) -> 
C140: =CONCATENATE(B139,"B") -> 35B | AD140: 60 | AH140: 15 | AK140: 9 | AN140: 12 | AQ140: 21 | AT140: 8 | AV140: =IF(ISNUMBER(SMALL(#REF!,ROW()-2)),SMALL(#REF!,ROW()-2),"") ->  | AW140: 1 | BF140: 15 | BJ140: 31 | BY140: 16
C141: =CONCATENATE(B139,"C") -> 35C | AD141: 60 | AH141: 15 | AK141: 9 | AN141: 12 | AQ141: 21 | AT141: 8 | AV141: =IF(ISNUMBER(SMALL(#REF!,ROW()-2)),SMALL(#REF!,ROW()-2),"") ->  | AW141: 1 | BB141: =IF(ISNUMBER(AY141),VLOOKUP(AY141,AZ:BA,2,FALSE),"") ->  | BD141: =P141 -> 0 | BF141: 15 | BG141: =IF(ISNUMBER(BD141),VLOOKUP(BD141,BE:BF,2,FALSE),"") -> 0 | BJ141: 31 | BS141: =#REF! ->  | BU141: =#REF! ->  | BY141: 16
C142: =CONCATENATE(B139,"D") -> 35D | AD142: 60 | AH142: 15 | AK142: 9 | AN142: 12 | AQ142: 21 | AT142: 8 | AV142: =IF(ISNUMBER(SMALL(#REF!,ROW()-2)),SMALL(#REF!,ROW()-2),"") ->  | AW142: 1 | BF142: 15 | BJ142: 31 | BY142: 16
B143: 36 | C143: =CONCATENATE(B143,"A") -> 36A | O143: =IF(ISBLANK(N143),"",IF(N143=0,$CC$2,CD143)) ->  | P143: =IF(ISNUMBER(O143),IF(ISNUMBER(O143),IF(ISNUMBER(O143),IF(ISNUMBER(O143),O143+G143+G144+G145+G146+I143+I144+I145+I146+K143+K144+K145+K146+M143+M144+M145+M146,""),""),""),"") ->  | Q143: =IF(ISNUMBER(P143),VLOOKUP(BV143,BX:BY,2,FALSE),"") ->  | AD143: 60 | AH143: 15 | AK143: 9 | AN143: 12 | AQ143: 21 | AT143: 8 | AV143: =IF(ISNUMBER(SMALL(#REF!,ROW()-2)),SMALL(#REF!,ROW()-2),"") ->  | AW143: 1 | BF143: 15 | BJ143: 31 | BN143: =P143 ->  | BO143: =SUM(G143,G144,G145,G146) -> 0 | BP143: =SUM(I143,I144,I145,I146) -> 0 | BQ143: =SUM(K143,K144,K145,K146) -> 0 | BR143: =O143 ->  | BT143: =SUM(M143,M144,M145,M146) -> 0 | BV143: =IF(ISNUMBER(P143),CONCATENATE(BN143+100,BO143+100,BP143+100,BQ143+100,BT143+100,BR143+100)+0,"") ->  | BW143: =IF(ISNUMBER(SMALL(BV:BV,ROW()-2)),SMALL(BV:BV,ROW()-2),"") ->  | BY143: 16 | CD143: =VLOOKUP(N143,AS:AT,2,FALSE) -> 
C144: =CONCATENATE(B143,"B") -> 36B | AD144: 60 | AH144: 15 | AK144: 9 | AN144: 12 | AQ144: 21 | AT144: 8 | AV144: =IF(ISNUMBER(SMALL(#REF!,ROW()-2)),SMALL(#REF!,ROW()-2),"") ->  | AW144: 1 | BB144: =IF(ISNUMBER(AY144),VLOOKUP(AY144,AZ:BA,2,FALSE),"") ->  | BD144: =P144 -> 0 | BF144: 15 | BG144: =IF(ISNUMBER(BD144),VLOOKUP(BD144,BE:BF,2,FALSE),"") -> 0 | BJ144: 31 | BS144: =#REF! ->  | BU144: =#REF! ->  | BY144: 16
C145: =CONCATENATE(B143,"C") -> 36C | AD145: 60 | AH145: 15 | AK145: 9 | AN145: 12 | AQ145: 21 | AT145: 8 | AV145: =IF(ISNUMBER(SMALL(#REF!,ROW()-2)),SMALL(#REF!,ROW()-2),"") ->  | AW145: 1 | BF145: 15 | BJ145: 31 | BY145: 16
C146: =CONCATENATE(B143,"D") -> 36D | AD146: 60 | AH146: 15 | AK146: 9 | AN146: 12 | AQ146: 21 | AT146: 8 | AV146: =IF(ISNUMBER(SMALL(#REF!,ROW()-2)),SMALL(#REF!,ROW()-2),"") ->  | AW146: 1 | BF146: 15 | BJ146: 31 | BY146: 16
B147: 37 | C147: =CONCATENATE(B147,"A") -> 37A | O147: =IF(ISBLANK(N147),"",IF(N147=0,$CC$2,CD147)) ->  | P147: =IF(ISNUMBER(O147),IF(ISNUMBER(O147),IF(ISNUMBER(O147),IF(ISNUMBER(O147),O147+G147+G148+G149+G150+I147+I148+I149+I150+K147+K148+K149+K150+M147+M148+M149+M150,""),""),""),"") ->  | Q147: =IF(ISNUMBER(P147),VLOOKUP(BV147,BX:BY,2,FALSE),"") ->  | AD147: 60 | AH147: 15 | AK147: 9 | AN147: 12 | AQ147: 21 | AT147: 8 | AV147: =IF(ISNUMBER(SMALL(#REF!,ROW()-2)),SMALL(#REF!,ROW()-2),"") ->  | AW147: 1 | BB147: =IF(ISNUMBER(AY147),VLOOKUP(AY147,AZ:BA,2,FALSE),"") ->  | BD147: =P147 ->  | BF147: 15 | BG147: =IF(ISNUMBER(BD147),VLOOKUP(BD147,BE:BF,2,FALSE),"") ->  | BJ147: 31 | BN147: =P147 ->  | BO147: =SUM(G147,G148,G149,G150) -> 0 | BP147: =SUM(I147,I148,I149,I150) -> 0 | BQ147: =SUM(K147,K148,K149,K150) -> 0 | BR147: =O147 ->  | BS147: =#REF! ->  | BT147: =SUM(M147,M148,M149,M150) -> 0 | BU147: =#REF! ->  | BV147: =IF(ISNUMBER(P147),CONCATENATE(BN147+100,BO147+100,BP147+100,BQ147+100,BT147+100,BR147+100)+0,"") ->  | BW147: =IF(ISNUMBER(SMALL(BV:BV,ROW()-2)),SMALL(BV:BV,ROW()-2),"") ->  | BY147: 16 | CD147: =VLOOKUP(N147,AS:AT,2,FALSE) -> 
C148: =CONCATENATE(B147,"B") -> 37B | AD148: 60 | AH148: 15 | AK148: 9 | AN148: 12 | AQ148: 21 | AT148: 8 | AV148: =IF(ISNUMBER(SMALL(#REF!,ROW()-2)),SMALL(#REF!,ROW()-2),"") ->  | AW148: 1 | BF148: 15 | BJ148: 31 | BY148: 16
C149: =CONCATENATE(B147,"C") -> 37C | AD149: 60 | AH149: 15 | AK149: 9 | AN149: 12 | AQ149: 21 | AT149: 8 | AV149: =IF(ISNUMBER(SMALL(#REF!,ROW()-2)),SMALL(#REF!,ROW()-2),"") ->  | AW149: 1 | BF149: 15 | BJ149: 31 | BY149: 16
C150: =CONCATENATE(B147,"D") -> 37D | AD150: 60 | AH150: 15 | AK150: 9 | AN150: 12 | AQ150: 21 | AT150: 8 | AV150: =IF(ISNUMBER(SMALL(#REF!,ROW()-2)),SMALL(#REF!,ROW()-2),"") ->  | AW150: 1 | BB150: =IF(ISNUMBER(AY150),VLOOKUP(AY150,AZ:BA,2,FALSE),"") ->  | BD150: =P150 -> 0 | BF150: 15 | BG150: =IF(ISNUMBER(BD150),VLOOKUP(BD150,BE:BF,2,FALSE),"") -> 0 | BJ150: 31 | BS150: =#REF! ->  | BU150: =#REF! ->  | BY150: 16
B151: 38 | C151: =CONCATENATE(B151,"A") -> 38A | O151: =IF(ISBLANK(N151),"",IF(N151=0,$CC$2,CD151)) ->  | P151: =IF(ISNUMBER(O151),IF(ISNUMBER(O151),IF(ISNUMBER(O151),IF(ISNUMBER(O151),O151+G151+G152+G153+G154+I151+I152+I153+I154+K151+K152+K153+K154+M151+M152+M153+M154,""),""),""),"") ->  | Q151: =IF(ISNUMBER(P151),VLOOKUP(BV151,BX:BY,2,FALSE),"") ->  | AD151: 60 | AH151: 15 | AK151: 9 | AN151: 12 | AQ151: 21 | AT151: 8 | AV151: =IF(ISNUMBER(SMALL(#REF!,ROW()-2)),SMALL(#REF!,ROW()-2),"") ->  | AW151: 1 | BF151: 15 | BJ151: 31 | BN151: =P151 ->  | BO151: =SUM(G151,G152,G153,G154) -> 0 | BP151: =SUM(I151,I152,I153,I154) -> 0 | BQ151: =SUM(K151,K152,K153,K154) -> 0 | BR151: =O151 ->  | BT151: =SUM(M151,M152,M153,M154) -> 0 | BV151: =IF(ISNUMBER(P151),CONCATENATE(BN151+100,BO151+100,BP151+100,BQ151+100,BT151+100,BR151+100)+0,"") ->  | BW151: =IF(ISNUMBER(SMALL(BV:BV,ROW()-2)),SMALL(BV:BV,ROW()-2),"") ->  | BY151: 16 | CD151: =VLOOKUP(N151,AS:AT,2,FALSE) -> 
C152: =CONCATENATE(B151,"B") -> 38B | AD152: 60 | AH152: 15 | AK152: 9 | AN152: 12 | AQ152: 21 | AT152: 8 | AV152: =IF(ISNUMBER(SMALL(#REF!,ROW()-2)),SMALL(#REF!,ROW()-2),"") ->  | AW152: 1 | BF152: 15 | BJ152: 31 | BY152: 16
C153: =CONCATENATE(B151,"C") -> 38C | AD153: 60 | AH153: 15 | AK153: 9 | AN153: 12 | AQ153: 21 | AT153: 8 | AV153: =IF(ISNUMBER(SMALL(#REF!,ROW()-2)),SMALL(#REF!,ROW()-2),"") ->  | AW153: 1 | BB153: =IF(ISNUMBER(AY153),VLOOKUP(AY153,AZ:BA,2,FALSE),"") ->  | BD153: =P153 -> 0 | BF153: 15 | BG153: =IF(ISNUMBER(BD153),VLOOKUP(BD153,BE:BF,2,FALSE),"") -> 0 | BJ153: 31 | BS153: =#REF! ->  | BU153: =#REF! ->  | BY153: 16
C154: =CONCATENATE(B151,"D") -> 38D | AD154: 60 | AH154: 15 | AK154: 9 | AN154: 12 | AQ154: 21 | AT154: 8 | AV154: =IF(ISNUMBER(SMALL(#REF!,ROW()-2)),SMALL(#REF!,ROW()-2),"") ->  | AW154: 1 | BF154: 15 | BJ154: 31 | BY154: 16
B155: 39 | C155: =CONCATENATE(B155,"A") -> 39A | O155: =IF(ISBLANK(N155),"",IF(N155=0,$CC$2,CD155)) ->  | P155: =IF(ISNUMBER(O155),IF(ISNUMBER(O155),IF(ISNUMBER(O155),IF(ISNUMBER(O155),O155+G155+G156+G157+G158+I155+I156+I157+I158+K155+K156+K157+K158+M155+M156+M157+M158,""),""),""),"") ->  | Q155: =IF(ISNUMBER(P155),VLOOKUP(BV155,BX:BY,2,FALSE),"") ->  | AD155: 60 | AH155: 15 | AK155: 9 | AN155: 12 | AQ155: 21 | AS155: =IF(AR154<>AR155,AS154+1,AS154) ->  | AT155: 8 | AV155: =IF(ISNUMBER(SMALL(#REF!,ROW()-2)),SMALL(#REF!,ROW()-2),"") ->  | AW155: 1 | BB155: =IF(BA154<>BA155,BB154+1,BB154) -> 0 | BD155: =IF(BC154<>BC155,BD154+1,BD154) -> 0 | BE155: =IF(BD154<>BD155,BE154+1,BE154) ->  | BF155: 15 | BG155: =IF(BF154<>BF155,BG154+1,BG154) -> 0 | BJ155: 31 | BN155: =P155 ->  | BO155: =SUM(G155,G156,G157,G158) -> 0 | BP155: =SUM(I155,I156,I157,I158) -> 0 | BQ155: =SUM(K155,K156,K157,K158) -> 0 | BR155: =O155 ->  | BT155: =SUM(M155,M156,M157,M158) -> 0 | BV155: =IF(ISNUMBER(P155),CONCATENATE(BN155+100,BO155+100,BP155+100,BQ155+100,BT155+100,BR155+100)+0,"") ->  | BW155: =IF(ISNUMBER(SMALL(BV:BV,ROW()-2)),SMALL(BV:BV,ROW()-2),"") ->  | BY155: 16 | CD155: =VLOOKUP(N155,AS:AT,2,FALSE) -> 
C156: =CONCATENATE(B155,"B") -> 39B | AD156: 60 | AH156: 15 | AK156: 9 | AN156: =IF(AM155<>AM156,AN155+1,AN155) -> 12 | AQ156: =IF(AP155<>AP156,AQ155+1,AQ155) -> 21 | AS156: =IF(AR155<>AR156,AS155+1,AS155) ->  | AT156: =IF(AS155<>AS156,AT155+1,AT155) -> 8 | AV156: =IF(ISNUMBER(SMALL(#REF!,ROW()-2)),SMALL(#REF!,ROW()-2),"") ->  | AW156: =IF(AV155<>AV156,AW155+1,AW155) -> 1 | BB156: =IF(BA155<>BA156,BB155+1,BB155) -> 0 | BD156: =IF(BC155<>BC156,BD155+1,BD155) -> 0 | BE156: =IF(BD155<>BD156,BE155+1,BE155) ->  | BF156: =IF(BE155<>BE156,BF155+1,BF155) -> 15 | BG156: =IF(BF155<>BF156,BG155+1,BG155) -> 0 | BJ156: =IF(BI155<>BI156,BJ155+1,BJ155) -> 31 | BS156: =#REF! ->  | BU156: =#REF! ->  | BY156: 16
C157: =CONCATENATE(B155,"C") -> 39C | AD157: 60 | AH157: 15 | AK157: 9 | AN157: 12 | AQ157: 21 | AT157: 8 | AV157: =IF(ISNUMBER(SMALL(#REF!,ROW()-2)),SMALL(#REF!,ROW()-2),"") ->  | AW157: 1 | BB157: 0 | BD157: 0 | BF157: 15 | BG157: 0 | BJ157: 31 | BY157: 16
C158: =CONCATENATE(B155,"D") -> 39D | AD158: 60 | AH158: 15 | AK158: 9 | AN158: 12 | AQ158: 21 | AT158: 8 | AV158: =IF(ISNUMBER(SMALL(#REF!,ROW()-2)),SMALL(#REF!,ROW()-2),"") ->  | AW158: 1 | BB158: 0 | BD158: 0 | BF158: 15 | BG158: 0 | BJ158: 31 | BY158: 16
B159: 40 | C159: =CONCATENATE(B159,"A") -> 40A | O159: =IF(ISBLANK(N159),"",IF(N159=0,$CC$2,CD159)) ->  | P159: =IF(ISNUMBER(O159),IF(ISNUMBER(O159),IF(ISNUMBER(O159),IF(ISNUMBER(O159),O159+G159+G160+G161+G162+I159+I160+I161+I162+K159+K160+K161+K162+M159+M160+M161+M162,""),""),""),"") ->  | Q159: =IF(ISNUMBER(P159),VLOOKUP(BV159,BX:BY,2,FALSE),"") ->  | X159: =G159 ->  | Y159: =I159 ->  | Z159: =K159 ->  | AA159: =M159 ->  | AD159: 60 | AH159: 15 | AK159: 9 | AN159: 12 | AQ159: 21 | AT159: 8 | AV159: =IF(ISNUMBER(SMALL(#REF!,ROW()-2)),SMALL(#REF!,ROW()-2),"") ->  | AW159: 1 | BB159: 0 | BD159: 0 | BF159: 15 | BG159: 0 | BJ159: 31 | BN159: =P159 ->  | BO159: =SUM(G159,G160,G161,G162) -> 0 | BP159: =SUM(I159,I160,I161,I162) -> 0 | BQ159: =SUM(K159,K160,K161,K162) -> 0 | BR159: =O159 ->  | BT159: =SUM(M159,M160,M161,M162) -> 0 | BV159: =IF(ISNUMBER(P159),CONCATENATE(BN159+100,BO159+100,BP159+100,BQ159+100,BT159+100,BR159+100)+0,"") ->  | BW159: =IF(ISNUMBER(SMALL(BV:BV,ROW()-2)),SMALL(BV:BV,ROW()-2),"") ->  | BY159: 16 | CD159: =VLOOKUP(N159,AS:AT,2,FALSE) -> 
C160: =CONCATENATE(B159,"B") -> 40B | AD160: 60 | AH160: 15 | AK160: 9 | AN160: 12 | AQ160: 21 | AT160: 8 | AV160: =IF(ISNUMBER(SMALL(#REF!,ROW()-2)),SMALL(#REF!,ROW()-2),"") ->  | AW160: 1 | BB160: 0 | BD160: 0 | BF160: 15 | BG160: 0 | BJ160: 31 | BY160: 16
C161: =CONCATENATE(B159,"C") -> 40C | AD161: 60 | AH161: 15 | AK161: 9 | AN161: 12 | AQ161: 21 | AT161: 8 | AV161: =IF(ISNUMBER(SMALL(#REF!,ROW()-2)),SMALL(#REF!,ROW()-2),"") ->  | AW161: 1 | BB161: 0 | BD161: 0 | BF161: 15 | BG161: 0 | BJ161: 31 | BY161: 16
C162: =CONCATENATE(B159,"D") -> 40D | AD162: 60 | AH162: 15 | AK162: 9 | AN162: 12 | AQ162: 21 | AT162: 8 | AV162: =IF(ISNUMBER(SMALL(#REF!,ROW()-2)),SMALL(#REF!,ROW()-2),"") ->  | AW162: 1 | BB162: 0 | BD162: 0 | BF162: 15 | BG162: 0 | BJ162: 31 | BY162: 16

Sheet Sortowanie wyników
M3: =IF(ISBLANK(P3),"",O3) ->  | N3: 28
N4: 12
N5: 56
N6: 67
N7: 22
N8: 49
N9: 55
N10: 13
N11: 54
N12: 18
N13: 20
N14: 19
N15: 10
N16: 29
N17: 61
N18: 9
N19: 24
N20: 15
N21: 11
N22: 51
N23: 25
N24: 63
N25: 26
N26: 53
N27: 46
N28: 17
N29: 48
N30: 62
N31: 52
N32: 31
N33: 40
N34: 64
M35: =IF(ISBLANK(P35),"",O35) ->  | N35: 30
N36: 32
N37: 27
N38: 23
N39: 2
N40: 37
N41: 21
N42: 41
N43: 50
N44: 60
N45: 44
N46: 58
N47: 5
N48: 1
N49: 14
N50: 43
N51: 68
N52: 59
N53: 66
N54: 42
N55: 57
N56: 65
N57: 47
N58: 16
N59: 3
N60: 35
N61: 7
N62: 6
N63: 34
N64: 39
N65: 45
N66: 36
M67: =IF(ISBLANK(P67),"",O67) ->  | N67: 38
N68: 8
N69: 4
N70: 33
N71: 69
N72: 70
N73: 71
N74: 72
N75: 73
N76: 74
N77: 75
N78: 76
N79: 77
N80: 78
N81: 79
N82: 80
N83: 81
N84: 82
N85: 83
N86: 84
N87: 85
N88: 86
N89: 87
N90: 88
N91: 89
N92: 90
N93: 91
N94: 92
N95: 93
N96: 94
N97: 95
N98: 96
M99: =IF(ISBLANK(P99),"",O99) ->  | N99: 97
N100: 98
N101: 99
N102: 100
N103: 101
N104: 102
N105: 103
N106: 104
N107: 105
N108: 106
N109: 107
N110: 108
N111: 109
N112: 110
N113: 111
N114: 112
N115: 113
N116: 114
N117: 115
N118: 116
N119: 117
N120: 118
N121: 119
N122: 120
N123: 121
N124: 122
N125: 123
N126: 124
N127: 125
N128: 126
N129: 127
N130: 128
M131: =IF(ISBLANK(P131),"",O131) ->  | N131: 129
N132: 130
N133: 131
N134: 132
N135: 133
N136: 134
N137: 135
N138: 136
N139: 137
N140: 138
N141: 139
N142: 140
N143: 141
N144: 142
N145: 143
N146: 144
N147: 145
N148: 146
N149: 147
N150: 148
N151: 149
N152: 150
N153: 151
N154: 152
N155: 153
N156: 154
N157: 155
N158: 156
N159: 157
N160: 158
N161: 159
N162: 160
